NUMERO_MANDATO;RIGA_MANDATO;IMPORTO_RIGA;IMPORTO_MANDATO;BENEFICIARIO;CIG;TITOLO_PAGAMENTO;DATA_MANDATO;CAPITOLO;ARTICOLO;NUMERO_IMPEGNO;TITOLO;DESCR_TITOLO;LIVELLO_II;DESCR_LIVELLO_II;LIVELLO_III;DESCR_LIVELLO_III;LIVELLO_IV;DESCR_LIVELLO_IV;LIVELLO_V;DESCR_LIVELLO_V;DATA_PAG_EFF;
2;1;"6.695,69";"6.695,69";DRAMMIS ROSARIO;68648659CD;SALDO Fatt.n. 13  del 29/12/2016 SERVIZIO MENSA SCOLASTICA DAL 28/11/2016 AL 22/12/2016;30-01-2017;653;0;211;1;Spese correnti;3;Acquisto di beni e servizi;2;Acquisto di servizi;14;Servizi di ristorazione;999;Altri servizi di ristorazione;2017-01-30;
8;1;"1.106,40";"1.106,40";CREDITORI DIVERSI (Confr.Allegato); ;STIPENDI MESE DI GENNAIO;31-01-2017;14;1;0;1;Spese correnti;3;Acquisto di beni e servizi;2;Acquisto di servizi;1;Organi e incarichi istituzionali dell'amministrazione;1;Organi istituzionali dell'amministrazione - Indennità;2017-01-31;
9;1;"195,22";"195,22";CREDITORI DIVERSI (Confr.Allegato); ;STIPENDI MESE DI GENNAIO;31-01-2017;18;1;0;1;Spese correnti;3;Acquisto di beni e servizi;2;Acquisto di servizi;1;Organi e incarichi istituzionali dell'amministrazione;1;Organi istituzionali dell'amministrazione - Indennità;2017-01-31;
40;1;"9.760,00";"9.760,00";LA B.C.C. DEL CROTONESE-TESORERIA COMUNALE;586855117D;SALDO Fatt.n. 25/E  del 21/12/2016 COMPENSO SERVIZIO TESORERIA ANNO 2016;01-02-2017;156;0;194;1;Spese correnti;3;Acquisto di beni e servizi;2;Acquisto di servizi;17;Servizi finanziari;2;Oneri per servizio di tesoreria;2017-02-01;
41;1;"3.000,00";"3.000,00";RIZZA GIANNA; ;ACCORDO BONARIO TRANSAZIONE CESSIONE TERRENO QUARTIERE PALAZZINE: SALDO 3^ E ULTIMA RATA;01-02-2017;168;0;242;1;Spese correnti;10;Altre spese correnti;99;Altre spese correnti n.a.c.;99;Altre spese correnti n.a.c.;999;Altre spese correnti n.a.c.;2017-02-01;
42;1;"895,48";"895,48";SOLUTIVE S.R.L.;ZDA127E015;SALDO Fatt.n. FATTPA 162_16  del 27/12/2016 SERVIZIO GESTIONE ECONOMICA PERSONALE: OTT.NOV. E DIC. 2016;01-02-2017;109;0;1;1;Spese correnti;3;Acquisto di beni e servizi;2;Acquisto di servizi;99;Altri servizi;999;Altri servizi diversi n.a.c.;2017-02-01;
43;1;"6.350,10";"6.350,10";KIBERNETES S.R.L. - RC;ZD61C18478;SALDO Fatt.n. 0000392/PAE  del 12/12/2016 COMPENSO RECUPERO IVA ANNO FISCALE 2015;01-02-2017;186;0;229;1;Spese correnti;3;Acquisto di beni e servizi;2;Acquisto di servizi;99;Altri servizi;999;Altri servizi diversi n.a.c.;2017-02-01;
44;1;"2.500,00";"2.500,00";CANDALISE GIANFRANCO; ;SALDO Fatt.n. 01  del 17/01/2017 COMPENSO 2^ SEMESTRE 2016;02-02-2017;34;1;170;1;Spese correnti;3;Acquisto di beni e servizi;2;Acquisto di servizi;1;Organi e incarichi istituzionali dell'amministrazione;8;"Compensi agli organi istituzionali di revisione, di controllo ed altri incarichi istituzionali dell'amministrazione";2017-02-02;
45;1;"319,54";"319,54";CANDALISE GIANFRANCO; ;"SALDO Fatt.n. 02  del 17/01/2017 RIMBORSO SPESE CON AUTO ALFA ROMEO JTDM 150 CV TARGATA EB 721 GZ NEI GIORNI 7-14-19 -29 LUGLIO 2016, GIORNO 4 AGOSTO 2016 GIORNI 2-10-20 SETTEMBRE 2016, GIORNI 18-25 OTTOBRE 2016, GIORNI 8-20 NOVEMBRE";02-02-2017;34;2;171;1;Spese correnti;3;Acquisto di beni e servizi;2;Acquisto di servizi;1;Organi e incarichi istituzionali dell'amministrazione;2;Organi istituzionali dell'amministrazione - Rimborsi;2017-02-02;
46;1;"346,74";"346,74";ENEL ENERGIA  S.P.A.;Z311457C9E;SALDO Fatt.n. 004701708149  del 13/12/2016 CONSUMO ENERGIA ELETTRICA: OTTOBRE E NOVEMBRE 2016;02-02-2017;118;4;67;1;Spese correnti;3;Acquisto di beni e servizi;2;Acquisto di servizi;5;Utenze e canoni;4;Energia elettrica;2017-02-02;
47;1;"35,28";"5.164,45";ENEL ENERGIA  S.P.A.;Z311457C9E;SALDO Fatt.n. 004701761110  del 20/12/2016 CONSUMO ENERGIA ELETTRICA: OTTOBRE E NOVEMBRE 2016;02-02-2017;1014;0;76;1;Spese correnti;3;Acquisto di beni e servizi;2;Acquisto di servizi;5;Utenze e canoni;4;Energia elettrica;2017-02-02;
47;2;"67,75";"5.164,45";ENEL ENERGIA  S.P.A.;Z311457C9E;SALDO Fatt.n. 004800021832  del 09/01/2017 CONSUMO ENERGIA ELETTRICA: DICEMBRE 2016;02-02-2017;1014;0;76;1;Spese correnti;3;Acquisto di beni e servizi;2;Acquisto di servizi;5;Utenze e canoni;4;Energia elettrica;2017-02-02;
47;3;"185,12";"5.164,45";ENEL ENERGIA  S.P.A.;Z311457C9E;SALDO Fatt.n. 004800015769  del 09/01/2017 CONSUMO ENERGIA ELETTRICA: DICEMBRE 2016;02-02-2017;1014;0;76;1;Spese correnti;3;Acquisto di beni e servizi;2;Acquisto di servizi;5;Utenze e canoni;4;Energia elettrica;2017-02-02;
47;4;"362,12";"5.164,45";ENEL ENERGIA  S.P.A.;Z311457C9E;SALDO Fatt.n. 004800016140  del 09/01/2017 CONSUMO ENERGIA ELETTRICA: DICEMBRE 2016;02-02-2017;1014;0;76;1;Spese correnti;3;Acquisto di beni e servizi;2;Acquisto di servizi;5;Utenze e canoni;4;Energia elettrica;2017-02-02;
47;5;"402,65";"5.164,45";ENEL ENERGIA  S.P.A.;Z311457C9E;SALDO Fatt.n. 004701708008  del 13/12/2016 CONSUMO ENERGIA ELETTRICA: NOVEMBRE 2016;02-02-2017;1014;0;76;1;Spese correnti;3;Acquisto di beni e servizi;2;Acquisto di servizi;5;Utenze e canoni;4;Energia elettrica;2017-02-02;
47;6;"532,46";"5.164,45";ENEL ENERGIA  S.P.A.;Z311457C9E;SALDO Fatt.n. 004800015768  del 09/01/2017 CONSUMO ENERGIA ELETTRICA: DICEMBRE 2016;02-02-2017;1014;0;76;1;Spese correnti;3;Acquisto di beni e servizi;2;Acquisto di servizi;5;Utenze e canoni;4;Energia elettrica;2017-02-02;
47;7;"946,40";"5.164,45";ENEL ENERGIA  S.P.A.;Z311457C9E;SALDO Fatt.n. 004800020987  del 09/01/2017 CONSUMO ENERGIA ELETTRICA: DICEMBRE 2016;02-02-2017;1014;0;76;1;Spese correnti;3;Acquisto di beni e servizi;2;Acquisto di servizi;5;Utenze e canoni;4;Energia elettrica;2017-02-02;
47;8;"988,48";"5.164,45";ENEL ENERGIA  S.P.A.;Z311457C9E;SALDO Fatt.n. 004800015765  del 09/01/2017 CONSUMO ENERGIA ELETTRICA: DICEMBRE 2016;02-02-2017;1014;0;76;1;Spese correnti;3;Acquisto di beni e servizi;2;Acquisto di servizi;5;Utenze e canoni;4;Energia elettrica;2017-02-02;
47;9;"1.646,19";"5.164,45";ENEL ENERGIA  S.P.A.;Z311457C9E;SALDO Fatt.n. 004800020986  del 09/01/2017 CONSUMO ENERGIA ELETTRICA: DICEMBRE 2016;02-02-2017;1014;0;76;1;Spese correnti;3;Acquisto di beni e servizi;2;Acquisto di servizi;5;Utenze e canoni;4;Energia elettrica;2017-02-02;
48;1;"78,37";"3.933,03";ENEL ENERGIA  S.P.A.;Z311457C9E;SALDO Fatt.n. 004701761115  del 20/12/2016 CONSUMO ENERGIA ELETTRICA: OTTOBRE E NOVEMBRE 2016;02-02-2017;716;4;79;1;Spese correnti;3;Acquisto di beni e servizi;2;Acquisto di servizi;5;Utenze e canoni;4;Energia elettrica;2017-02-02;
48;2;"113,11";"3.933,03";ENEL ENERGIA  S.P.A.;Z311457C9E;SALDO Fatt.n. 004701761112  del 20/12/2016 CONSUMO ENERGIA ELETTRICA: OTTOBRE E NOVEMBRE 2016;02-02-2017;716;4;79;1;Spese correnti;3;Acquisto di beni e servizi;2;Acquisto di servizi;5;Utenze e canoni;4;Energia elettrica;2017-02-02;
48;3;"158,94";"3.933,03";ENEL ENERGIA  S.P.A.;Z311457C9E;SALDO Fatt.n. 004701761109  del 20/12/2016 CONSUMO ENERGIA ELETTRICA: OTTOBRE E NOVEMBRE 2016;02-02-2017;716;4;79;1;Spese correnti;3;Acquisto di beni e servizi;2;Acquisto di servizi;5;Utenze e canoni;4;Energia elettrica;2017-02-02;
48;4;"456,77";"3.933,03";ENEL ENERGIA  S.P.A.;Z311457C9E;SALDO Fatt.n. 004701708147  del 13/12/2016 CONSUMO ENERGIA ELETTRICA: NOVEMBRE 2016;02-02-2017;716;4;79;1;Spese correnti;3;Acquisto di beni e servizi;2;Acquisto di servizi;5;Utenze e canoni;4;Energia elettrica;2017-02-02;
48;5;"3.128,84";"3.933,03";ENEL ENERGIA  S.P.A.;Z311457C9E;SALDO Fatt.n. 004800015766  del 09/01/2017 CONSUMO ENERGIA ELETTRICA: DICEMBRE 2016;02-02-2017;716;4;79;1;Spese correnti;3;Acquisto di beni e servizi;2;Acquisto di servizi;5;Utenze e canoni;4;Energia elettrica;2017-02-02;
49;1;"1.010,48";"1.010,48";ENEL ENERGIA  S.P.A.;Z311457C9E;SALDO Fatt.n. 004800022958  del 09/01/2017 CONSUMO ENERGIA ELETTRICA: DICEMBRE 2016;02-02-2017;592;4;69;1;Spese correnti;3;Acquisto di beni e servizi;2;Acquisto di servizi;5;Utenze e canoni;4;Energia elettrica;2017-02-02;
50;1;"331,24";"331,24";ENEL ENERGIA  S.P.A.;Z311457C9E;SALDO Fatt.n. 004701706370  del 13/12/2016 CONSUMO ENERGIA ELETTRICA: OTTOBRE E NOVEMBRE 2016;02-02-2017;618;4;70;1;Spese correnti;3;Acquisto di beni e servizi;2;Acquisto di servizi;5;Utenze e canoni;4;Energia elettrica;2017-02-02;
51;1;"78,37";"361,94";ENEL ENERGIA  S.P.A.;Z311457C9E;SALDO Fatt.n. 004701761111  del 20/12/2016 CONSUMO ENERGIA ELETTRICA: OTTOBRE E NOVEMBRE 2016;02-02-2017;1488;4;78;1;Spese correnti;3;Acquisto di beni e servizi;2;Acquisto di servizi;5;Utenze e canoni;4;Energia elettrica;2017-02-02;
51;2;"86,58";"361,94";ENEL ENERGIA  S.P.A.;Z311457C9E;SALDO Fatt.n. 004701761116  del 20/12/2016 CONSUMO ENERGIA ELETTRICA: OTTOBRE E NOVEMBRE 2016;02-02-2017;1488;4;78;1;Spese correnti;3;Acquisto di beni e servizi;2;Acquisto di servizi;5;Utenze e canoni;4;Energia elettrica;2017-02-02;
51;3;"197,99";"361,94";ENEL ENERGIA  S.P.A.;Z311457C9E;SALDO Fatt.n. 004701761114  del 20/12/2016 CONSUMO ENERGIA ELETTRICA: OTTOBRE E NOVEMBRE 2016;02-02-2017;1488;4;78;1;Spese correnti;3;Acquisto di beni e servizi;2;Acquisto di servizi;5;Utenze e canoni;4;Energia elettrica;2017-02-02;
52;1;"57,89";"117,28";ENEL ENERGIA  S.P.A.;Z311457C9E;SALDO Fatt.n. 004701659870  del 10/12/2016 CONSUMO ENERGIA ELETTRICA: NOVEMBRE 2016;02-02-2017;1264;0;74;1;Spese correnti;3;Acquisto di beni e servizi;2;Acquisto di servizi;5;Utenze e canoni;4;Energia elettrica;2017-02-02;
52;2;"60,39";"117,28";ENEL ENERGIA  S.P.A.;Z311457C9E;SALDO Fatt.n. 004800036674  del 12/01/2017 CONSUMO ENERGIA ELETTRICA: DICEMBRE 2016;02-02-2017;1264;0;74;1;Spese correnti;3;Acquisto di beni e servizi;2;Acquisto di servizi;5;Utenze e canoni;4;Energia elettrica;2017-02-02;
53;1;"195,22";"195,22";ENEL ENERGIA  S.P.A.;Z311457C9E;SALDO Fatt.n. 004800033321  del 12/01/2017 CONSUMO ENERGIA ELETTRICA: NOVEMBRE E DICEMBRE 2016;02-02-2017;905;0;73;1;Spese correnti;3;Acquisto di beni e servizi;2;Acquisto di servizi;5;Utenze e canoni;4;Energia elettrica;2017-02-02;
54;1;"134,55";"134,55";ENEL ENERGIA  S.P.A.;Z311457C9E;SALDO Fatt.n. 004701761113  del 20/12/2016 CONSUMO ENERGIA ELETTRICA: OTTOBRE E NOVEMBRE 2016;02-02-2017;824;0;72;1;Spese correnti;3;Acquisto di beni e servizi;2;Acquisto di servizi;5;Utenze e canoni;4;Energia elettrica;2017-02-02;
55;1;"568,02";"568,02";ENEL ENERGIA  S.P.A.;Z311457C9E;SALDO Fatt.n. 004800015767  del 09/01/2017 CONSUMO ENERGIA ELETTRICA: DICEMBRE 2016;02-02-2017;905;0;73;1;Spese correnti;3;Acquisto di beni e servizi;2;Acquisto di servizi;5;Utenze e canoni;4;Energia elettrica;2017-02-02;
56;1;"453,90";"453,90";ENEL ENERGIA  S.P.A.;Z311457C9E;SALDO Fatt.n. 004701708148  del 13/12/2016 CONSUMO ENERGIA ELETTRICA: NOVEMBRE 2016;02-02-2017;118;4;67;1;Spese correnti;3;Acquisto di beni e servizi;2;Acquisto di servizi;5;Utenze e canoni;4;Energia elettrica;2017-02-02;
57;1;"110,80";"110,80";ECONOMO COMUNALE; ;RIMBORSO SPESA ANTICIPATA PER ACQUISTO MANIFESTI DI LUTTO;02-02-2017;8;0;66;1;Spese correnti;3;Acquisto di beni e servizi;1;Acquisto di beni;2;Altri beni di consumo;9;Beni per attività di rappresentanza;2017-02-02;
58;1;"547,49";"599,22";ECONOMO COMUNALE; ;RIMBORSO SPESA PER ACQUISTO STAMPATI;02-02-2017;82;3;88;1;Spese correnti;3;Acquisto di beni e servizi;1;Acquisto di beni;2;Altri beni di consumo;1;"Carta, cancelleria e stampati";2017-02-02;
58;2;"52,73";"599,22";ECONOMO COMUNALE; ;SALDO Fatt.n. 2016PA0013876  del 30/11/2016 ACQUISTO DOMINIO SITO WEB COMUNE;02-02-2017;82;3;88;1;Spese correnti;3;Acquisto di beni e servizi;1;Acquisto di beni;2;Altri beni di consumo;1;"Carta, cancelleria e stampati";2017-02-02;
59;1;"39,32";"39,32";ECONOMO COMUNALE; ;RIMBORSO SPESA ANTICIPATA PER ACQUISTO ROTOLONI E MATERIALE DI PULIZIA;02-02-2017;82;5;50;1;Spese correnti;3;Acquisto di beni e servizi;1;Acquisto di beni;5;Medicinali e altri beni di consumo sanitario;999;Altri beni e prodotti sanitari n.a.c.;2017-02-02;
60;1;"30,00";"30,00";ECONOMO COMUNALE; ;ACQUISTO SIM  E RICARICA PERIODICA TELEFONO MOBILE IN DOTAZIONE ALLA SCUOLA DELL'INFANZIA DI VIA METROPOLIA;02-02-2017;118;3;171;1;Spese correnti;3;Acquisto di beni e servizi;2;Acquisto di servizi;5;Utenze e canoni;2;Telefonia mobile;2017-02-02;
61;1;"76,10";"76,10";ECONOMO COMUNALE; ;RIMBORSO SPESA ANTICIPATA PER ACQUISTO VOLUME "LA STAZIONE APPALTANTE UNICA"  E TIMBRO MULTIUSO;02-02-2017;244;9;44;1;Spese correnti;3;Acquisto di beni e servizi;1;Acquisto di beni;2;Altri beni di consumo;1;"Carta, cancelleria e stampati";2017-02-02;
62;1;"5,50";"5,50";ECONOMO COMUNALE; ;RIMBORSO SPESA ANTICIPATA PER ACQUISTO CAVETTO USB;02-02-2017;274;3;13;1;Spese correnti;3;Acquisto di beni e servizi;1;Acquisto di beni;2;Altri beni di consumo;1;"Carta, cancelleria e stampati";2017-02-02;
63;1;"159,50";"159,50";ECONOMO COMUNALE; ;"RIMBORSO SPESA ANTICIPATA PER ACQUISTO MATERIALE DI PULIZIA, SCANNER E ROUTER";02-02-2017;660;0;161;1;Spese correnti;3;Acquisto di beni e servizi;2;Acquisto di servizi;99;Altri servizi;999;Altri servizi diversi n.a.c.;2017-02-02;
65;1;"7,00";"7,00";ECONOMO COMUNALE; ;RIMBORSO SPESA ANTICIPATA PER ACQUISTO NASTRO SEGNALETICO;02-02-2017;964;0;239;1;Spese correnti;3;Acquisto di beni e servizi;1;Acquisto di beni;2;Altri beni di consumo;999;Altri beni e materiali di consumo n.a.c.;2017-02-02;
66;1;"120,00";"120,00";ECONOMO COMUNALE; ;RIMBORSO SPESA ANTICIPATA PER ACQUISTO MATERIALE IDRICO;02-02-2017;1221;0;238;1;Spese correnti;3;Acquisto di beni e servizi;2;Acquisto di servizi;99;Altri servizi;999;Altri servizi diversi n.a.c.;2017-02-02;
67;1;"30,53";"30,53";ECONOMO COMUNALE; ;R IMBORSO SPESA ANTICIPATA PER ACQUISTO RUOTE CARRELLO RACCOLTA RIFIUTI E SACCHI SPAZZATURA;02-02-2017;1250;8;143;1;Spese correnti;3;Acquisto di beni e servizi;1;Acquisto di beni;2;Altri beni di consumo;2;"Carburanti, combustibili e lubrificanti";2017-02-02;
69;1;"156,50";"156,50";ECONOMO COMUNALE; ;RIMBORSO SPESA PER ACQUISTO PITTURA E RIPARAZIONE CANCELLO CIMITERO CAPOLUOGO;02-02-2017;1474;0;240;1;Spese correnti;3;Acquisto di beni e servizi;1;Acquisto di beni;2;Altri beni di consumo;999;Altri beni e materiali di consumo n.a.c.;2017-02-02;
70;1;"400,00";"400,00";TOTI S.R.L.- GENERAL CONSTRUCTION;Z591C452CC;SALDO Fatt.n. 10/PA  del 06/12/2016 ACQUISTO DI BENI PER MANUTENZIONE STRADE COMUNALI FRAZIONE ALTILIA;02-02-2017;958;1;237;1;Spese correnti;3;Acquisto di beni e servizi;1;Acquisto di beni;2;Altri beni di consumo;999;Altri beni e materiali di consumo n.a.c.;2017-02-02;
71;1;"1.262,25";"1.262,25";GIOVANI DEL 2000 SOCIETA' COOPERATIVA;Z6F1C579F7;SALDO Fatt.n. 504  del 06/12/2016 INTERVENTO D'URGENZA DI AUTOSPURGO PER RIPRISTINO RETE FOGNANTE;02-02-2017;1230;0;248;1;Spese correnti;3;Acquisto di beni e servizi;2;Acquisto di servizi;99;Altri servizi;999;Altri servizi diversi n.a.c.;2017-02-02;
72;1;"437,00";"1.285,83";FINBUC S.R.L.;Z791BFEFF6;"SALDO Fatt.n. 001807/PA  del 23/11/2016 ACQUITO TONER E CARTUCCE PER STAMPANTI, FOTOCOPIATORI E FAX UFFICI COMUNALI";02-02-2017;82;3;219;1;Spese correnti;3;Acquisto di beni e servizi;1;Acquisto di beni;2;Altri beni di consumo;7;Altri materiali tecnico-specialistici non sanitari;2017-02-02;
72;2;"848,83";"1.285,83";FINBUC S.R.L.;Z791BFEFF6;"SALDO Fatt.n. 002137/PA  del 27/12/2016 ACQUITO TONER E CARTUCCE PER STAMPANTI, FOTOCOPIATORI E FAX UFFICI COMUNALI";02-02-2017;82;3;219;1;Spese correnti;3;Acquisto di beni e servizi;1;Acquisto di beni;2;Altri beni di consumo;7;Altri materiali tecnico-specialistici non sanitari;2017-02-02;
73;1;"2.104,02";"2.104,02";SIR SAFEFY SYSTEM S.P.A.;ZA91C4DFFA;SALDO Fatt.n. 574/2016/V2  del 31/12/2016 ACQUISTO VESTIARIO PERSONALE SERVIZIO NETTEZZA URBANA;03-02-2017;1250;7;243;1;Spese correnti;3;Acquisto di beni e servizi;1;Acquisto di beni;2;Altri beni di consumo;4;Vestiario;2017-02-03;
74;1;"2.900,00";"2.900,00";AMMIRATI COSTRUZIONI DI AMMIRATI DARIO;ZB11C6B8C2;SALDO Fatt.n. 2/PA  del 30/12/2016 LAVORI DI SOMMA URGENZA MESSA IN SICUREZZA SCALINATA DISCESA PAOLO ORSI;03-02-2017;959;0;256;1;Spese correnti;3;Acquisto di beni e servizi;2;Acquisto di servizi;9;Manutenzione ordinaria e riparazioni;8;Manutenzione ordinaria e riparazioni di beni immobili;2017-02-03;
75;1;"4.172,49";"4.172,49";REGIONE CALABRIA-DIPART.14-POLITICHE AMBIENTALI; ;TARIFFA SMALTIMENTO R.S.U.-PERIODO NOVEMBRE 2016-CAP. 1103003;03-02-2017;1270;0;37;1;Spese correnti;3;Acquisto di beni e servizi;2;Acquisto di servizi;15;Contratti di servizio pubblico;5;Contratti di servizio per il conferimento in discarica dei rifiuti;2017-02-03;
76;1;"2.638,12";"2.638,12";REGIONE CALABRIA-DIPART.14-POLITICHE AMBIENTALI; ;TARIFFA SMALTIMENTO RSU-DICEMBRE 2016  E CONGUAGLIO GENNAIO 2016- CAP. 1103003;03-02-2017;1270;0;37;1;Spese correnti;3;Acquisto di beni e servizi;2;Acquisto di servizi;15;Contratti di servizio pubblico;5;Contratti di servizio per il conferimento in discarica dei rifiuti;2017-02-03;
77;1;"10.782,59";"10.782,59";REGIONE CALABRIA-DIPART.14-POLITICHE AMBIENTALI; ;TARIFFA SMALTIMENTO RSU-DIFFERENZA ANNO 2015 - CAP. 1103003;03-02-2017;1270;0;37;1;Spese correnti;3;Acquisto di beni e servizi;2;Acquisto di servizi;15;Contratti di servizio pubblico;5;Contratti di servizio per il conferimento in discarica dei rifiuti;2017-02-03;
78;1;"42,00";"225,00";DE LUCA ANGELA; ;RIMBORSO SPESE DI VIAGGIO AMMINISTRATORI COMUNALI DAL 12/05/2016 AL 25/10/2016;03-02-2017;14;4;269;1;Spese correnti;3;Acquisto di beni e servizi;2;Acquisto di servizi;1;Organi e incarichi istituzionali dell'amministrazione;2;Organi istituzionali dell'amministrazione - Rimborsi;2017-02-03;
78;2;"183,00";"225,00";VIGNA PIETRO; ;RIMBORSO SPESE DI VIAGGIO AMMINISTRATORI COMUNALI DAL 12/05/2016 AL 25/10/2016;03-02-2017;14;4;269;1;Spese correnti;3;Acquisto di beni e servizi;2;Acquisto di servizi;1;Organi e incarichi istituzionali dell'amministrazione;2;Organi istituzionali dell'amministrazione - Rimborsi;2017-02-03;
79;1;"2.921,73";"2.921,73";GUARASCIO S.R.L.;ZC01C7D050;SALDO Fatt.n. 02/1478  del 04/03/2015 MENSA SCOLASTICA 2015/2016: ACQUISTO PRODOTTI MONOUSO;03-02-2017;640;3;267;1;Spese correnti;3;Acquisto di beni e servizi;1;Acquisto di beni;2;Altri beni di consumo;999;Altri beni e materiali di consumo n.a.c.;2017-02-03;
80;1;"366,77";"366,77";BARCONETO S.N.C.-AZIENDA ORTOFRUTTICOLA;ZC01C7D050;SALDO Fatt.n. 9  del 20/07/2015 MENSA SCOLASTICA 2015/2016: AQCUISTO PRODOTTI ORTOFRUTTICOLI;03-02-2017;640;3;268;1;Spese correnti;3;Acquisto di beni e servizi;1;Acquisto di beni;2;Altri beni di consumo;11;Generi alimentari;2017-02-03;
81;1;"0,01";"1.750,00";ARISTIPPO TOURING SERVICE;Z891BCF0A5;ACCONTO Fatt.n. 8/PA  del 05/12/2016 MANIFESTAZIONI CULTURALI AUTUNNALI 2016;03-02-2017;737;0;195;1;Spese correnti;3;Acquisto di beni e servizi;1;Acquisto di beni;2;Altri beni di consumo;999;Altri beni e materiali di consumo n.a.c.;2017-02-03;
81;2;"1.750,99";"1.750,00";ARISTIPPO TOURING SERVICE;Z891BCF0A5;SALDO Fatt.n. 8/PA  del 05/12/2016 MANIFESTAZIONI CULTURALI AUTUNNALI 2016;03-02-2017;737;0;195;1;Spese correnti;3;Acquisto di beni e servizi;1;Acquisto di beni;2;Altri beni di consumo;999;Altri beni e materiali di consumo n.a.c.;2017-02-03;
82;1;"3.197,50";"3.197,50";CO.PRO.S.S.-CONSORZIO PROV.LE SERVIZI SOCIALI; ;QUOTA CONSORTILE ANNUALITA' 2016;03-02-2017;1460;0;280;1;Spese correnti;3;Acquisto di beni e servizi;2;Acquisto di servizi;99;Altri servizi;3;Quote di associazioni;2017-02-03;
83;1;"5.700,00";"5.700,00";ASSOCIAZIONE CULTURALE ESPERIA 20_VENTI;Z391C59B74;"PROGETTO CASTELFIABA-EVENTI CULTURALI 2016 (F.U.C.): REDAZIONE PROGETTO, COMPILAZIONE FORMULARIO ED ALTRI ADEMPIMENTI PER PARTECIPAZIONE AL BANDO REGIONALE";03-02-2017;720;0;261;1;Spese correnti;3;Acquisto di beni e servizi;2;Acquisto di servizi;2;"Organizzazione eventi, pubblicita` e servizi per trasferta";5;Organizzazione e partecipazione a manifestazioni e convegni;2017-02-03;
84;1;"165,00";"165,00";CROCE ROSSA ITALIANA-COMITATO DI SANTA SEVERINA;Z9A1B00FFD;SALDO Fatt.n. 1/PA  del 31/12/2016 FESTA MEDIEVALE: SERVIZIO DI ASSISTENZA;03-02-2017;717;0;125;1;Spese correnti;3;Acquisto di beni e servizi;2;Acquisto di servizi;2;"Organizzazione eventi, pubblicita` e servizi per trasferta";5;Organizzazione e partecipazione a manifestazioni e convegni;2017-02-03;
85;1;"110,97";"637,51";TELECOM ITALIA S.P.A.;Z1D1D320CE;SALDO Fatt.n. 8U00012928  del 10/01/2017 CANONE TELEFONICO:1^ BIM 2017-UTENZA N. 096213046023;06-02-2017;118;3;5;1;Spese correnti;3;Acquisto di beni e servizi;2;Acquisto di servizi;5;Utenze e canoni;1;Telefonia fissa;2017-02-06;
85;2;"165,64";"637,51";TELECOM ITALIA S.P.A.;Z1D1D320CE;SALDO Fatt.n. 8U00012938  del 10/01/2017 CANONE TELEFONICO:1^ BIM 2017-UTENZA N. 0962555829;06-02-2017;118;3;5;1;Spese correnti;3;Acquisto di beni e servizi;2;Acquisto di servizi;5;Utenze e canoni;1;Telefonia fissa;2017-02-06;
85;3;"289,58";"637,51";TELECOM ITALIA S.P.A.;Z1D1D320CE;SALDO Fatt.n. 8U00012154  del 10/01/2017 CANONE TELEFONICO:1^ BIM 2017-UTENZA N. 096251062;06-02-2017;118;3;5;1;Spese correnti;3;Acquisto di beni e servizi;2;Acquisto di servizi;5;Utenze e canoni;1;Telefonia fissa;2017-02-06;
85;4;"73,32";"637,51";TELECOM ITALIA S.P.A.;Z1D1D320CE;SALDO Fatt.n. 8U00012083  del 10/01/2017 CANONE TELEFONICO:1^ BIM 2017-UTENZA N. 096213046022;06-02-2017;118;3;5;1;Spese correnti;3;Acquisto di beni e servizi;2;Acquisto di servizi;5;Utenze e canoni;1;Telefonia fissa;2017-02-06;
86;1;"112,74";"112,74";TELECOM ITALIA S.P.A.;Z1D1D320CE;SALDO Fatt.n. 8U00012260  del 10/01/2017 CANONE TELEFONICO:1^BIM. 2017-UTENZA 096251183;06-02-2017;618;3;6;1;Spese correnti;3;Acquisto di beni e servizi;2;Acquisto di servizi;5;Utenze e canoni;1;Telefonia fissa;2017-02-06;
87;1;"67,97";"67,97";TELECOM ITALIA S.P.A.;Z1D1D320CE;SALDO Fatt.n. 8U00012169  del 10/01/2017 CANONE TELEFONICO:1^BIM. 2017-UTENZA 096251653;06-02-2017;662;3;7;1;Spese correnti;3;Acquisto di beni e servizi;2;Acquisto di servizi;5;Utenze e canoni;1;Telefonia fissa;2017-02-06;
88;1;"131,25";"131,25";TELECOM ITALIA S.P.A.;Z1D1D320CE;SALDO Fatt.n. 8U00011339  del 10/01/2017 CANONE TELEFONICO:1^BIM. 2017-UTENZA 0962555832;06-02-2017;716;3;8;1;Spese correnti;3;Acquisto di beni e servizi;2;Acquisto di servizi;5;Utenze e canoni;1;Telefonia fissa;2017-02-06;
89;1;"188,04";"188,04";ENEL ENERGIA  S.P.A.;Z311457C9E;SALDO Fatt.n. 004800061207  del 14/01/2017 CONSUMO ENERGIA ELETTRICA DICEMBRE 2016;08-02-2017;1588;4;75;1;Spese correnti;3;Acquisto di beni e servizi;2;Acquisto di servizi;5;Utenze e canoni;4;Energia elettrica;2017-02-08;
90;1;"438,11";"438,11";ENEL ENERGIA  S.P.A.;Z311457C9E;SALDO Fatt.n. 004800054482  del 14/01/2017 CONSUMO ENERGIA ELETTRICA DICEMBRE 2016;08-02-2017;716;4;77;1;Spese correnti;3;Acquisto di beni e servizi;2;Acquisto di servizi;5;Utenze e canoni;4;Energia elettrica;2017-02-08;
91;1;"497,99";"497,99";ENEL ENERGIA  S.P.A.;Z311457C9E;SALDO Fatt.n. 004800061205  del 14/01/2017 CONSUMO ENERGIA ELETTRICA DICEMBRE 2016;08-02-2017;824;0;72;1;Spese correnti;3;Acquisto di beni e servizi;2;Acquisto di servizi;5;Utenze e canoni;4;Energia elettrica;2017-02-08;
92;1;"531,74";"531,74";ENEL ENERGIA  S.P.A.;Z311457C9E;SALDO Fatt.n. 004800061206  del 14/01/2017 CONSUMO ENERGIA ELETTRICA DICEMBRE 2016;08-02-2017;618;4;70;1;Spese correnti;3;Acquisto di beni e servizi;2;Acquisto di servizi;5;Utenze e canoni;4;Energia elettrica;2017-02-08;
95;1;"1.264,21";"1.264,21";POSTE ITALIANE S.P.A.;ZAD1ADFAD5;SALDO Fatt.n. 8716323939  del 21/11/2016 SPESE POSTALI SETTEMBRE 2016: RENDICONTO N. 2089147320;14-02-2017;118;0;136;1;Spese correnti;3;Acquisto di beni e servizi;2;Acquisto di servizi;16;Servizi amministrativi;2;Spese postali;2017-02-14;
96;1;"3.946,76";"3.946,76";DRAMMIS ROSARIO;68648659CD;SALDO Fatt.n. 02  del 06/02/2017 SERVIZIO MENSA SCOLASTICA: GENNAIO 2017;15-02-2017;653;0;211;1;Spese correnti;3;Acquisto di beni e servizi;2;Acquisto di servizi;14;Servizi di ristorazione;999;Altri servizi di ristorazione;2017-02-15;
97;1;"3.819,81";"3.819,81";CARTOLIBRERIA - TIGANO MARIO;Z4E1C54FBC;SALDO Fatt.n. 6  del 19/12/2016 FORNITURA LIBREI DI TESTO SCUOLA PRIMARIA A.S. 2016/2017;15-02-2017;606;0;272;1;Spese correnti;4;Trasferimenti correnti;2;Trasferimenti correnti a Famiglie;2;Interventi assistenziali;999;Altri assegni e sussidi assistenziali;2017-02-15;
98;1;"485,00";"485,00";LOGOS INFORMATICA S.R.L.;Z931CC9C7A;SALDO Fatt.n. 0008/EL  del 30/12/2016 FORNITURA MATERIALE INFORMATICO;15-02-2017;82;3;271;1;Spese correnti;3;Acquisto di beni e servizi;1;Acquisto di beni;2;Altri beni di consumo;6;Materiale informatico;2017-02-15;
99;1;"720,80";"720,80";MAURO S.A.S. DI MARANGOLO LUIGI ULISSE & C.;Z29145F01E;SALDO Fatt.n. 1  del 15/11/2016 FORNITURA CALCESTRUZZO PER MANUTENZIONE STRAORDINARIA CIMITERO ALTILIA;15-02-2017;3780;0;191;2;Spese in conto capitale;2;Investimenti fissi lordi e acquisto di terreni;1;Beni materiali;9;Beni immobili;15;Cimiteri;2017-02-15;
100;1;"3.160,00";"3.160,00";COLAO DOMENICO;ZEF17DEFF9;SALDO Fatt.n. 2/PA  del 28/12/2016 RILIEVI TOPO GRAFICI E ASSISTENZA E COLLABORAZIONE PROCEDURE "PREGEO" E "DOCFA" IMMOBILI COMUNALI;15-02-2017;250;7;237;1;Spese correnti;3;Acquisto di beni e servizi;2;Acquisto di servizi;99;Altri servizi;999;Altri servizi diversi n.a.c.;2017-02-15;
101;1;"172,65";"172,65";LAZZARI S.R.L.;Z451C8B5ED;SALDO Fatt.n. 948/2016  del 28/12/2016 ACQUISTO N. 3 SPECCHI PER SEGNALETICA STRADALE;15-02-2017;964;0;265;1;Spese correnti;3;Acquisto di beni e servizi;1;Acquisto di beni;2;Altri beni di consumo;999;Altri beni e materiali di consumo n.a.c.;2017-02-15;
102;1;"84,00";"84,00";MAGGIOLI S.P.A.;Z911B9C5FE;SALDO Fatt.n. 0005970145  del 28/12/2016 ACQUISTO LIBRI PER UFFICIO TECNICO:"IL RUP E LA DETERMINA A CONTRATTARE";15-02-2017;82;3;188;1;Spese correnti;3;Acquisto di beni e servizi;1;Acquisto di beni;2;Altri beni di consumo;14;Stampati specialistici;2017-02-15;
103;1;"184,27";"184,27";NINARELLO S.R.L.;Z8E1C6E24F;SALDO Fatt.n. 112 PA  del 29/12/2016 RIPARAZIONE COMPATTATORE N.U. TARGATO EN388BX;15-02-2017;1262;7;252;1;Spese correnti;3;Acquisto di beni e servizi;2;Acquisto di servizi;9;Manutenzione ordinaria e riparazioni;1;"Manutenzione ordinaria e riparazioni di mezzi di trasporto ad uso civile, di sicurezza e ordine pubblico";2017-02-15;
104;1;"2.074,00";"2.074,00";A-ZETA SERVIZI S.R.L.;Z051AA7A81;SALDO Fatt.n. 10/PA  del 12/12/2016 SERVIZIO DI CONSULENZA E ASSISTENZA INFORMATICA PER GLI UFFICI COMUNALI;15-02-2017;112;0;138;1;Spese correnti;3;Acquisto di beni e servizi;2;Acquisto di servizi;11;Prestazioni professionali e specialistiche;999;Altre prestazioni professionali e specialistiche n.a.c.;2017-02-15;
107;1;"276,28";"276,28";PHLOGAS & POWER S.R.L.;ZAD19E5F0A;SALDO Fatt.n. 2160120160000220000  del 05/12/2016 CONSUMO GAS CENTRO COTTURA: OTTOBRE E NOVEMBRE 2016;16-02-2017;662;5;81;1;Spese correnti;3;Acquisto di beni e servizi;2;Acquisto di servizi;5;Utenze e canoni;6;Gas;2017-02-16;
108;1;"587,66";"587,66";NUOVE OPPORTUNITA' S.R.L.;Z461A5CB43;SALDO Fatt.n. FATTPA 230_16  del 17/12/2016 ABBONAMENTO INFOMEDIA DAL 02.02.2016 ALL'01.02.2017;16-02-2017;103;0;95;1;Spese correnti;3;Acquisto di beni e servizi;2;Acquisto di servizi;4;Acquisto di servizi per formazione e addestramento del personale dell'ente;999;Acquisto di servizi per altre spese per formazione e addestramento n.a.c.;2017-02-16;
109;1;"550,00";"550,00";ASSOCIAZIONE PARODOI;ZF51A6CC40;VALORIZZAZIONE CASTELLO 2016-EVENTI DI PROMOZIONE CULTURALE: CONTRIBUTO SPESE CONCERTO DEL 09/08/2016;16-02-2017;718;0;145;1;Spese correnti;3;Acquisto di beni e servizi;2;Acquisto di servizi;2;"Organizzazione eventi, pubblicita` e servizi per trasferta";5;Organizzazione e partecipazione a manifestazioni e convegni;2017-02-16;
110;1;"3.235,08";"3.235,08";CARDELLI VIAGGI DI BORDA LUISA;60608324C9;SALDO Fatt.n. FATTPA 1_17  del 03/02/2017 SERVIZIO TRASPORTO SCOLASTICO MESE DI DICEMBRE 2016;16-02-2017;668;0;20;1;Spese correnti;3;Acquisto di beni e servizi;2;Acquisto di servizi;15;Contratti di servizio pubblico;2;Contratti di servizio di trasporto scolastico;2017-02-16;
111;1;"3.235,07";"3.235,07";CARDELLI VIAGGI DI BORDA LUISA;6944731D4E;SALDO Fatt.n. FatPAM 2_17  del 03/02/2017 SERVIZIO TRASPORTO SCOLASTICO MESE DI GENNAIO 2017;16-02-2017;668;0;31;1;Spese correnti;3;Acquisto di beni e servizi;2;Acquisto di servizi;15;Contratti di servizio pubblico;2;Contratti di servizio di trasporto scolastico;2017-02-16;
112;1;"1.106,40";"1.106,40";CREDITORI DIVERSI (Confr.Allegato); ;STIPENDI MESE DI FEBBRAIO;21-02-2017;14;1;0;1;Spese correnti;3;Acquisto di beni e servizi;2;Acquisto di servizi;1;Organi e incarichi istituzionali dell'amministrazione;1;Organi istituzionali dell'amministrazione - Indennità;2017-02-21;
113;1;"195,22";"195,22";CREDITORI DIVERSI (Confr.Allegato); ;STIPENDI MESE DI FEBBRAIO;21-02-2017;18;1;0;1;Spese correnti;3;Acquisto di beni e servizi;2;Acquisto di servizi;1;Organi e incarichi istituzionali dell'amministrazione;1;Organi istituzionali dell'amministrazione - Indennità;2017-02-21;
150;1;"1.000,00";"24.425,70";ADOPERA SRL IMPRESA SOCIALE;Z391C59B74;SALDO Fatt.n. FATTPA 2_16  del 21/12/2016 PROGETTO CASTELFIABA-EVENTI CULTURALI 2016 (F.U.C.): DIREZIONE TECNICA PROGETTO CASTEL FIABA;21-02-2017;720;0;261;1;Spese correnti;3;Acquisto di beni e servizi;2;Acquisto di servizi;2;"Organizzazione eventi, pubblicita` e servizi per trasferta";5;Organizzazione e partecipazione a manifestazioni e convegni;2017-02-21;
150;2;"0,01";"24.425,70";ARISTIPPO TOURING SERVICE;Z391C59B74;ACCONTO Fatt.n. 1/PA  del 02/02/2017 PROGETTO CASTELFIABA-EVENTI CULTURALI 2016 (F.U.C.): ASSISTENZA TECNICA E NOLEGGIO AUDIO-VIDEO;21-02-2017;720;0;261;1;Spese correnti;3;Acquisto di beni e servizi;2;Acquisto di servizi;2;"Organizzazione eventi, pubblicita` e servizi per trasferta";5;Organizzazione e partecipazione a manifestazioni e convegni;2017-02-21;
150;3;"1.800,99";"24.425,70";ARISTIPPO TOURING SERVICE;Z391C59B74;SALDO Fatt.n. 1/PA  del 02/02/2017 PROGETTO CASTELFIABA-EVENTI CULTURALI 2016 (F.U.C.): ASSISTENZA TECNICA E NOLEGGIO AUDIO-VIDEO;21-02-2017;720;0;261;1;Spese correnti;3;Acquisto di beni e servizi;2;Acquisto di servizi;2;"Organizzazione eventi, pubblicita` e servizi per trasferta";5;Organizzazione e partecipazione a manifestazioni e convegni;2017-02-21;
150;4;"1.725,00";"24.425,70";AZIENDA AGRITURISTICA "LE PUZELLE";Z391C59B74;SALDO Fatt.n. FATTPA 6_16  del 16/12/2016 PROGETTO CASTELFIABA-EVENTI CULTURALI 2016 (F.U.C.): SPESE VARIESERVIZI B&B E RISTORAZIONE;21-02-2017;720;0;261;1;Spese correnti;3;Acquisto di beni e servizi;2;Acquisto di servizi;2;"Organizzazione eventi, pubblicita` e servizi per trasferta";5;Organizzazione e partecipazione a manifestazioni e convegni;2017-02-21;
150;5;"600,00";"24.425,70";CARDELLI VIAGGI DI BORDA LUISA;Z391C59B74;SALDO Fatt.n. 04  del 13/02/2017 SERVIZI DI MOBILITA' PER I PARTECIPANTI AGLI EVENTI DI CASTELFIABA 2016;21-02-2017;720;0;261;1;Spese correnti;3;Acquisto di beni e servizi;2;Acquisto di servizi;2;"Organizzazione eventi, pubblicita` e servizi per trasferta";5;Organizzazione e partecipazione a manifestazioni e convegni;2017-02-21;
150;6;"16.482,20";"24.425,70";COMITATO PROGETTO MUSICA;Z391C59B74;SALDO Fatt.n. 1/2017  del 25/01/2017 PROGETTO CASTELFIABA-EVENTI CULTURALI 2016 (F.U.C.): SPESE VARIE;21-02-2017;720;0;261;1;Spese correnti;3;Acquisto di beni e servizi;2;Acquisto di servizi;2;"Organizzazione eventi, pubblicita` e servizi per trasferta";5;Organizzazione e partecipazione a manifestazioni e convegni;2017-02-21;
150;7;"2.818,50";"24.425,70";LA LOCANDA DEL RE DI NIECKO & C. S.A.S.;Z391C59B74;SALDO Fatt.n. 1/PA  del 01/02/2017 PROGETTO CASTELFIABA-EVENTI CULTURALI 2016 (F.U.C.): SERVIZIO RISTORAZIONE;21-02-2017;720;0;261;1;Spese correnti;3;Acquisto di beni e servizi;2;Acquisto di servizi;2;"Organizzazione eventi, pubblicita` e servizi per trasferta";5;Organizzazione e partecipazione a manifestazioni e convegni;2017-02-21;
153;1;"496,54";"496,54";EQUITALIA NORD S.P.A.; ;QUOTA ASSOCIATIVA ANNO 2017-AVVISO N. 012830L020170001415 DEL 10/03/2017;17-03-2017;134;0;45;1;Spese correnti;3;Acquisto di beni e servizi;2;Acquisto di servizi;99;Altri servizi;3;Quote di associazioni;2017-03-17;
154;1;"539,63";"2.155,52";Q8 QUASER S.R.L.;ZC51D231C0;SALDO Fatt.n. 0030023842  del 10/02/2017 FORNITURA GASOLIO DA RISCALDAMENTO PER LE SCUOLE DELL'OBBLIGO;17-03-2017;616;4;3;1;Spese correnti;3;Acquisto di beni e servizi;1;Acquisto di beni;2;Altri beni di consumo;2;"Carburanti, combustibili e lubrificanti";2017-03-17;
154;2;"1.616,89";"2.155,52";Q8 QUASER S.R.L.;ZC51D231C0;SALDO Fatt.n. 0030023841  del 10/02/2017 FORNITURA GASOLIO DA RISCALDAMENTO PER LE SCUOLE DELL'OBBLIGO;17-03-2017;616;4;3;1;Spese correnti;3;Acquisto di beni e servizi;1;Acquisto di beni;2;Altri beni di consumo;2;"Carburanti, combustibili e lubrificanti";2017-03-17;
155;1;"350,99";"350,99";RI.VI. S.A.S. DI MACCARRONE A.;Z4C1C8C19E;SALDO Fatt.n. 1/PA  del 19/01/2017 CONTROLLO SEMESTRALE E REVISIONE ESTINTORI;17-03-2017;618;7;266;1;Spese correnti;3;Acquisto di beni e servizi;2;Acquisto di servizi;99;Altri servizi;999;Altri servizi diversi n.a.c.;2017-03-17;
156;1;"3.000,00";"3.000,00";DE LUCA FRANCESCO; ;ACQUISTO TERRENO IN LOCALITA' "INCRISCIUSU": FOGLIO N.18-PARTICELLA 503;17-03-2017;1883;0;281;2;Spese in conto capitale;2;Investimenti fissi lordi e acquisto di terreni;1;Beni materiali;9;Beni immobili;999;Beni immobili n.a.c.;2017-03-17;
157;1;"5.370,00";"5.370,00";IDROTERMOCLIMA DI GUMARI VINCENZO;ZDB1C7EA38;SALDO Fatt.n. 2  del 07/02/2017 Fattura Comune di Santa Severina Revisione e Manutenzione Impianti di Riscaldamento Edifici Scolastici.;17-03-2017;619;0;257;1;Spese correnti;3;Acquisto di beni e servizi;2;Acquisto di servizi;99;Altri servizi;999;Altri servizi diversi n.a.c.;2017-03-17;
158;1;"4.735,59";"4.735,59";REGIONE CALABRIA-DIPART.14-POLITICHE AMBIENTALI; ;TARIFFA SMALTIMENTO RSU- GENNAIO 2017 - CAP. 1103003;17-03-2017;1270;0;23;1;Spese correnti;3;Acquisto di beni e servizi;2;Acquisto di servizi;15;Contratti di servizio pubblico;5;Contratti di servizio per il conferimento in discarica dei rifiuti;2017-03-17;
159;1;"708,60";"708,60";CASA DEL VIGILE S.A.S. DI TALARICO G.& C.;Z721C5286A;SALDO Fatt.n. 72  del 29/12/2016 FORNITURA VESTIARIO PER LA POLIZIA MUNICIPALE;23-03-2017;1250;7;244;1;Spese correnti;3;Acquisto di beni e servizi;1;Acquisto di beni;2;Altri beni di consumo;4;Vestiario;2017-03-23;
160;1;"221,50";"221,50";MACRI' GIUSEPPE;Z921C16179;SALDO Fatt.n. FATTPA 1_17  del 14/02/2017 PEZZI DI RICAMBIO PER MOTOCARRO TARGATO KR000441;23-03-2017;1250;8;226;1;Spese correnti;3;Acquisto di beni e servizi;1;Acquisto di beni;2;Altri beni di consumo;999;Altri beni e materiali di consumo n.a.c.;2017-03-23;
161;1;"152,95";"152,95";CERAMICHE MARAZZITA DI SALVATORE MARAZZITA & C.;Z821BFDDCC;SALDO Fatt.n. 5  del 23/02/2017 FORNITURA MATERIALE PER MANUTENZIONE LOCALI ADIBITI A MUSEO;23-03-2017;713;0;217;1;Spese correnti;3;Acquisto di beni e servizi;1;Acquisto di beni;2;Altri beni di consumo;999;Altri beni e materiali di consumo n.a.c.;2017-03-23;
162;1;"11.674,94";"11.674,94";MARMIFICIO & ONORANZE FUNEBRI S.A.S. DI DURAZZI & RIZZA;ZB11C6460B;SALDO Fatt.n. 1  del 23/02/2017 FORNITURA LASTRE IN MARMO  E BORCHIE PER CIMITERO ALTILIA;23-03-2017;3780;0;258;2;Spese in conto capitale;2;Investimenti fissi lordi e acquisto di terreni;1;Beni materiali;9;Beni immobili;15;Cimiteri;2017-03-23;
163;1;"400,00";"400,00";L'AUTOMECCANICA S.N.C. DI PIRO GIUSEPPE ED ENZO;Z331B92F28;SALDO Fatt.n. 20  del 21/02/2017 MANUTENZIONE AUTO VIGILI URBANI TARGATA AP438YP;23-03-2017;450;0;189;1;Spese correnti;3;Acquisto di beni e servizi;2;Acquisto di servizi;9;Manutenzione ordinaria e riparazioni;1;"Manutenzione ordinaria e riparazioni di mezzi di trasporto ad uso civile, di sicurezza e ordine pubblico";2017-03-23;
164;1;"3.450,00";"3.450,00";MARTIRE EUGENIO;Z241C3D2C7;SALDO Fatt.n. 02/PA  del 25/02/2017 AGGIORNAMENTO DEL PIANO COMUNALE DI PROTEZIONE CIVILE DI SANTA SEVERINA KR;23-03-2017;1173;0;227;1;Spese correnti;3;Acquisto di beni e servizi;2;Acquisto di servizi;11;Prestazioni professionali e specialistiche;999;Altre prestazioni professionali e specialistiche n.a.c.;2017-03-23;
165;1;"854,00";"854,00";TECNOFER DI GAETANO BRUGNANO;Z671C75647;SALDO Fatt.n. 2  del 24/02/2017 ACQUISTO E MONTAGGIO LAMIERA GRECATA COPERTURA BLOCCO LOCULI CIMITERO ALTILIA;23-03-2017;3780;0;260;2;Spese in conto capitale;2;Investimenti fissi lordi e acquisto di terreni;1;Beni materiali;9;Beni immobili;15;Cimiteri;2017-03-23;
166;1;"975,00";"975,00";COSTRUZIONI EDILI E DERIVATI GERARDI VINCENZO;Z651C79869;SALDO Fatt.n. 3/FE  del 02/03/2017 ACQUISTO TERRENO VEGETALE PER RIEMPIMENTO AIUOLE EX CIMITERO S.ANTONIO;23-03-2017;3780;0;259;2;Spese in conto capitale;2;Investimenti fissi lordi e acquisto di terreni;1;Beni materiali;9;Beni immobili;15;Cimiteri;2017-03-23;
167;1;"465,00";"465,00";SERVIZI ASSICURATIVI S.N.C.DI ALESSIO BERNARDO - UNIPOL;Z1B1DAC73E;POLIZZA RCA MOTOCARRO RACCOLTA DIFFERENZIATA TARGATO KR000441;23-03-2017;1262;6;40;1;Spese correnti;10;Altre spese correnti;4;Premi di assicurazione;1;Premi di assicurazione contro i danni;3;Premi di assicurazione per responsabilità civile verso terzi;2017-03-23;
168;1;"55,96";"55,96";SERVIZI ASSICURATIVI S.N.C.DI ALESSIO BERNARDO - UNIPOL;Z1B1DAC73E;SOSPENSIONE POLIZZA RCA N. 30/126792086-AUTO VIGILI URBANI TARGATA AP438YP;23-03-2017;468;6;38;1;Spese correnti;10;Altre spese correnti;4;Premi di assicurazione;1;Premi di assicurazione contro i danni;3;Premi di assicurazione per responsabilità civile verso terzi;2017-03-23;
169;1;"60,00";"285,00";AUTORITA' NAZIONALE ANTICORRUZIONE (ANAC); ;CONTRIBUTI ANAC: CODICE MAV 01030577807651092-CODICE GARA6090644 E 6090831 DEL 25.06.2015;23-03-2017;3469;0;289;2;Spese in conto capitale;2;Investimenti fissi lordi e acquisto di terreni;1;Beni materiali;5;Attrezzature;999;Attrezzature n.a.c.;2017-03-23;
169;2;"225,00";"285,00";AUTORITA' NAZIONALE ANTICORRUZIONE (ANAC); ;CONTRIBUTI ANAC: CODICE MAV 01030604481531113-CODICE GARA 6226998 DEL 10.11.2015;23-03-2017;3469;0;289;2;Spese in conto capitale;2;Investimenti fissi lordi e acquisto di terreni;1;Beni materiali;5;Attrezzature;999;Attrezzature n.a.c.;2017-03-23;
170;1;"2.044,50";"2.044,50";HALLEY SUD S.R.L.;Z1C16B3384;SALDO Fatt.n. 201700036  del 04/01/2017 Canone di assistenza Software dal 01/01/2017 al 31/12/2017;23-03-2017;82;3;183;1;Spese correnti;3;Acquisto di beni e servizi;1;Acquisto di beni;2;Altri beni di consumo;6;Materiale informatico;2017-03-23;
172;1;"163,87";"609,71";MONDOFFICE S.R.L.;ZA01D0BEF7;SALDO Fatt.n. 30014918  del 08/02/2017 FORNITURA MATERIALE DI CANCELLERIA E CARTA PER GLI UFFICI COMUNALI;23-03-2017;82;3;1;1;Spese correnti;3;Acquisto di beni e servizi;1;Acquisto di beni;2;Altri beni di consumo;1;"Carta, cancelleria e stampati";2017-03-23;
172;2;"211,94";"609,71";MONDOFFICE S.R.L.;ZA01D0BEF7;SALDO Fatt.n. 30014916  del 08/02/2017 FORNITURA MATERIALE DI CANCELLERIA E CARTA PER GLI UFFICI COMUNALI;23-03-2017;82;3;1;1;Spese correnti;3;Acquisto di beni e servizi;1;Acquisto di beni;2;Altri beni di consumo;1;"Carta, cancelleria e stampati";2017-03-23;
172;3;"235,90";"609,71";MONDOFFICE S.R.L.;ZA01D0BEF7;SALDO Fatt.n. 30014917  del 08/02/2017 FORNITURA MATERIALE DI CANCELLERIA E CARTA PER GLI UFFICI COMUNALI;23-03-2017;82;3;1;1;Spese correnti;3;Acquisto di beni e servizi;1;Acquisto di beni;2;Altri beni di consumo;1;"Carta, cancelleria e stampati";2017-03-23;
173;1;"557,15";"557,15";VIGNA PIETRO;Z9C15FDA92;REALIZZAZIONE PROGETTO YOUTH IN EUROPE EVIDENCE BASED DRUG PREVENTION: RIMBORSO SPESE PER PARTECIPAZIONE AL MEETING CONCLUSIVO TENUTOSI A ROMA DAL 28 FEBBRAIO AL 3 MARZO 2017;23-03-2017;1413;0;140;1;Spese correnti;3;Acquisto di beni e servizi;2;Acquisto di servizi;99;Altri servizi;999;Altri servizi diversi n.a.c.;2017-03-23;
174;1;"1.320,00";"1.320,00";CLUB "I BORGHI PIU' BELLI D'ITALIA"; ;QUOTA ASSOCIATIVA ANNUALITA' 2017;23-03-2017;134;0;30;1;Spese correnti;3;Acquisto di beni e servizi;2;Acquisto di servizi;99;Altri servizi;3;Quote di associazioni;2017-03-23;
175;1;"200,00";"200,00";GAL KROTON SOC.CONSORTILE A.R.L.; ;QUOTA ASSOCIATIVA ANNO 2017;23-03-2017;134;0;27;1;Spese correnti;3;Acquisto di beni e servizi;2;Acquisto di servizi;99;Altri servizi;3;Quote di associazioni;2017-03-23;
176;1;"4.800,00";"4.800,00";CO.PRO.S.S.-CONSORZIO PROV.LE SERVIZI SOCIALI;Z611D1B3C5;L.R.N.27/85-INTEGRAZIONE SCOLASTICA-ASSISTENZA SPECIALISTICA ALUNNI DISABILI: ACCONTO;23-03-2017;1442;0;117;1;Spese correnti;4;Trasferimenti correnti;2;Trasferimenti correnti a Famiglie;5;Altri trasferimenti a famiglie;999;Altri trasferimenti a famiglie n.a.c.;2017-03-23;
177;1;"7.612,40";"7.612,40";DRAMMIS ROSARIO;68648659CD;SALDO Fatt.n. 3/2017  del 02/03/2017 SERVIZIO MENSA SCOLASTICA: FEBBRAIO 2017;23-03-2017;653;0;211;1;Spese correnti;3;Acquisto di beni e servizi;2;Acquisto di servizi;14;Servizi di ristorazione;999;Altri servizi di ristorazione;2017-03-23;
178;1;"163,79";"163,79";POSTE ITALIANE S.P.A.;ZAD1ADFAD5;SALDO Fatt.n. 8717055417  del 21/02/2017 SPESE POSTALI UFFICI COMUNALI: DICEMBRE 2016 - Rendiconto 2090508706;23-03-2017;118;0;136;1;Spese correnti;3;Acquisto di beni e servizi;2;Acquisto di servizi;16;Servizi amministrativi;2;Spese postali;2017-03-23;
179;1;"492,79";"1.095,83";POSTE ITALIANE S.P.A.;Z2E1D3D9CB;SALDO Fatt.n. 8716350005  del 13/12/2016 SPESE POSTALI UFFICI COMUNALI: OTTOBRE 2016 - Rendiconto 2089582926;23-03-2017;118;0;22;1;Spese correnti;3;Acquisto di beni e servizi;2;Acquisto di servizi;16;Servizi amministrativi;2;Spese postali;2017-03-23;
179;2;"603,04";"1.095,83";POSTE ITALIANE S.P.A.;Z2E1D3D9CB;SALDO Fatt.n. 8717020879  del 26/01/2017 SPESE POSTALI UFFICI COMUNALI: NOVEMBRE 2016 - Rendiconto 2090102466;23-03-2017;118;0;22;1;Spese correnti;3;Acquisto di beni e servizi;2;Acquisto di servizi;16;Servizi amministrativi;2;Spese postali;2017-03-23;
180;1;"337,80";"337,80";PHLOGAS & POWER S.R.L.;ZAD19E5F0A;SALDO Fatt.n. 2160120170000034700  del 22/02/2017 CONSUMO GAS NATURALE CENTRO COTTURA: DICEMBRE 2016-GENNAIO 2017;23-03-2017;662;5;81;1;Spese correnti;3;Acquisto di beni e servizi;2;Acquisto di servizi;5;Utenze e canoni;6;Gas;2017-03-23;
181;1;"6.250,00";"6.250,00";CUFARI GIUSEPPE;6330885B90;SALDO Fatt.n. FATTPA 3_17  del 24/02/2017 COMPETENZE TECNICHE PER RELAZIONE GEOMORFOLOGICA PER REDAZIONE STRUMENTO URBANISTICO  (P.S.C.)  E REGOLAMENTO EDILIZIO (R.E.U.) L.R. 19/2002 E SMI;24-03-2017;1092;0;160;1;Spese correnti;3;Acquisto di beni e servizi;2;Acquisto di servizi;11;Prestazioni professionali e specialistiche;999;Altre prestazioni professionali e specialistiche n.a.c.;2017-03-24;
182;1;"381,36";"1.260,15";ENEL ENERGIA  S.P.A.;Z311457C9E;SALDO Fatt.n. 004800233142  del 12/02/2017 CONSUMO ENERGIA ELETTRICA: DIC. 2016 - GEN. 2017;24-03-2017;118;4;10;1;Spese correnti;3;Acquisto di beni e servizi;2;Acquisto di servizi;5;Utenze e canoni;4;Energia elettrica;2017-03-24;
182;2;"879,79";"1.260,15";ENEL ENERGIA  S.P.A.;Z311457C9E;SALDO Fatt.n. 004800192629  del 08/02/2017 CONSUMO ENERGIA ELETTRICA: DIC. 2016 - GEN. 2017;24-03-2017;118;4;10;1;Spese correnti;3;Acquisto di beni e servizi;2;Acquisto di servizi;5;Utenze e canoni;4;Energia elettrica;2017-03-24;
183;1;"95,50";"1.006,44";ENEL ENERGIA  S.P.A.;Z311457C9E;SALDO Fatt.n. 004800192634  del 08/02/2017 CONSUMO ENERGIA ELETTRICA: DIC. 2016 - GEN. 2017;24-03-2017;566;4;11;1;Spese correnti;3;Acquisto di beni e servizi;2;Acquisto di servizi;5;Utenze e canoni;4;Energia elettrica;2017-03-24;
183;2;"186,20";"1.006,44";ENEL ENERGIA  S.P.A.;Z311457C9E;SALDO Fatt.n. 004800192627  del 08/02/2017 CONSUMO ENERGIA ELETTRICA: DIC. 2016 - GEN. 2017;24-03-2017;566;4;11;1;Spese correnti;3;Acquisto di beni e servizi;2;Acquisto di servizi;5;Utenze e canoni;4;Energia elettrica;2017-03-24;
183;3;"726,74";"1.006,44";ENEL ENERGIA  S.P.A.;Z311457C9E;SALDO Fatt.n. 004800192465  del 08/02/2017 CONSUMO ENERGIA ELETTRICA: DIC. 2016 - GEN. 2017;24-03-2017;566;4;11;1;Spese correnti;3;Acquisto di beni e servizi;2;Acquisto di servizi;5;Utenze e canoni;4;Energia elettrica;2017-03-24;
184;1;"83,97";"195,73";ENEL ENERGIA  S.P.A.;Z311457C9E;SALDO Fatt.n. 004800192631  del 08/02/2017 CONSUMO ENERGIA ELETTRICA: DIC. 2016 - GEN. 2017;24-03-2017;592;4;12;1;Spese correnti;3;Acquisto di beni e servizi;2;Acquisto di servizi;5;Utenze e canoni;4;Energia elettrica;2017-03-24;
184;2;"112,76";"195,73";ENEL ENERGIA  S.P.A.;Z311457C9E;SALDO Fatt.n. 004800192635  del 08/02/2017 CONSUMO ENERGIA ELETTRICA: DIC. 2016 - GEN. 2017;24-03-2017;592;4;12;1;Spese correnti;3;Acquisto di beni e servizi;2;Acquisto di servizi;5;Utenze e canoni;4;Energia elettrica;2017-03-24;
185;1;"329,63";"329,63";ENEL ENERGIA  S.P.A.;Z311457C9E;SALDO Fatt.n. 004800213871  del 12/02/2017 CONSUMO ENERGIA ELETTRICA: DIC. 2016 - GEN. 2017;24-03-2017;618;4;13;1;Spese correnti;3;Acquisto di beni e servizi;2;Acquisto di servizi;5;Utenze e canoni;4;Energia elettrica;2017-03-24;
186;1;"385,73";"385,73";ENEL ENERGIA  S.P.A.;Z311457C9E;SALDO Fatt.n. 004800192464  del 08/02/2017 CONSUMO ENERGIA ELETTRICA: DIC. 2016 - GEN. 2017;24-03-2017;662;4;14;1;Spese correnti;3;Acquisto di beni e servizi;2;Acquisto di servizi;5;Utenze e canoni;4;Energia elettrica;2017-03-24;
187;1;"133,99";"505,63";ENEL ENERGIA  S.P.A.;Z311457C9E;SALDO Fatt.n. 004800192632  del 08/02/2017 CONSUMO ENERGIA ELETTRICA: DIC. 2016 - GEN. 2017;24-03-2017;824;0;16;1;Spese correnti;3;Acquisto di beni e servizi;2;Acquisto di servizi;5;Utenze e canoni;4;Energia elettrica;2017-03-24;
187;2;"372,64";"505,63";ENEL ENERGIA  S.P.A.;Z311457C9E;SALDO Fatt.n. 004800192463  del 08/02/2017 CONSUMO ENERGIA ELETTRICA: DIC. 2016 - GEN. 2017;24-03-2017;824;0;16;1;Spese correnti;3;Acquisto di beni e servizi;2;Acquisto di servizi;5;Utenze e canoni;4;Energia elettrica;2017-03-24;
188;1;"164,64";"164,64";ENEL ENERGIA  S.P.A.;Z311457C9E;SALDO Fatt.n. 004800351819  del 11/03/2017 CONSUMO ENERGIA ELETTRICA: GEN. - FEB. 2017;24-03-2017;905;0;17;1;Spese correnti;3;Acquisto di beni e servizi;2;Acquisto di servizi;5;Utenze e canoni;4;Energia elettrica;2017-03-24;
189;1;"48,08";"107,87";ENEL ENERGIA  S.P.A.;Z311457C9E;SALDO Fatt.n. 004800349065  del 11/03/2017 CONSUMO ENERGIA ELETTRICA: FEBBRAIO 2017;24-03-2017;1264;0;18;1;Spese correnti;3;Acquisto di beni e servizi;2;Acquisto di servizi;5;Utenze e canoni;4;Energia elettrica;2017-03-24;
189;2;"59,79";"107,87";ENEL ENERGIA  S.P.A.;Z311457C9E;SALDO Fatt.n. 004800207001  del 11/02/2017 CONSUMO ENERGIA ELETTRICA: GENNAIO 2017;24-03-2017;1264;0;18;1;Spese correnti;3;Acquisto di beni e servizi;2;Acquisto di servizi;5;Utenze e canoni;4;Energia elettrica;2017-03-24;
190;1;"77,97";"375,27";ENEL ENERGIA  S.P.A.;Z311457C9E;SALDO Fatt.n. 004800194959  del 08/02/2017 CONSUMO ENERGIA ELETTRICA: DIC. 2016 - GEN. 2017;24-03-2017;1488;4;19;1;Spese correnti;3;Acquisto di beni e servizi;2;Acquisto di servizi;5;Utenze e canoni;4;Energia elettrica;2017-03-24;
190;2;"77,97";"375,27";ENEL ENERGIA  S.P.A.;Z311457C9E;SALDO Fatt.n. 004800192630  del 08/02/2017 CONSUMO ENERGIA ELETTRICA: DIC. 2016 - GEN. 2017;24-03-2017;1488;4;19;1;Spese correnti;3;Acquisto di beni e servizi;2;Acquisto di servizi;5;Utenze e canoni;4;Energia elettrica;2017-03-24;
190;3;"221,33";"375,27";ENEL ENERGIA  S.P.A.;Z311457C9E;SALDO Fatt.n. 004800192633  del 08/02/2017 CONSUMO ENERGIA ELETTRICA: DIC. 2016 - GEN. 2017;24-03-2017;1488;4;19;1;Spese correnti;3;Acquisto di beni e servizi;2;Acquisto di servizi;5;Utenze e canoni;4;Energia elettrica;2017-03-24;
191;1;"156,40";"156,40";ENEL ENERGIA  S.P.A.;Z311457C9E;SALDO Fatt.n. 004800192626  del 08/02/2017 CONSUMO ENERGIA ELETTRICA: DIC. 2016 - GEN. 2017;24-03-2017;1588;4;20;1;Spese correnti;3;Acquisto di beni e servizi;2;Acquisto di servizi;5;Utenze e canoni;4;Energia elettrica;2017-03-24;
192;1;"830,36";"1.720,57";ENEL ENERGIA  S.P.A.;Z311457C9E;SALDO Fatt.n. 004800315468  del 07/03/2017 CONSUMO ENERGIA ELETTRICA: FEBBRAIO 2017;24-03-2017;716;4;15;1;Spese correnti;3;Acquisto di beni e servizi;2;Acquisto di servizi;5;Utenze e canoni;4;Energia elettrica;2017-03-24;
192;2;"889,21";"1.720,57";ENEL ENERGIA  S.P.A.;Z311457C9E;SALDO Fatt.n. 004800192427  del 08/02/2017 CONSUMO ENERGIA ELETTRICA: GENNAIO 2017;24-03-2017;716;4;15;1;Spese correnti;3;Acquisto di beni e servizi;2;Acquisto di servizi;5;Utenze e canoni;4;Energia elettrica;2017-03-24;
193;1;"35,31";"16.884,74";ENEL ENERGIA  S.P.A.;Z311457C9E;SALDO Fatt.n. 004800192628  del 08/02/2017 CONSUMO ENERGIA ELETTRICA: DIC. 2016 - GEN. 2017;24-03-2017;1014;0;21;1;Spese correnti;3;Acquisto di beni e servizi;2;Acquisto di servizi;5;Utenze e canoni;4;Energia elettrica;2017-03-24;
193;2;"54,06";"16.884,74";ENEL ENERGIA  S.P.A.;Z311457C9E;SALDO Fatt.n. 004800315678  del 07/03/2017 CONSUMO ENERGIA ELETTRICA: FEBBRAIO 2017;24-03-2017;1014;0;21;1;Spese correnti;3;Acquisto di beni e servizi;2;Acquisto di servizi;5;Utenze e canoni;4;Energia elettrica;2017-03-24;
193;3;"65,60";"16.884,74";ENEL ENERGIA  S.P.A.;Z311457C9E;SALDO Fatt.n. 004800194957  del 08/02/2017 CONSUMO ENERGIA ELETTRICA: GENNAIO 2017;24-03-2017;1014;0;21;1;Spese correnti;3;Acquisto di beni e servizi;2;Acquisto di servizi;5;Utenze e canoni;4;Energia elettrica;2017-03-24;
193;4;"77,97";"16.884,74";ENEL ENERGIA  S.P.A.;Z311457C9E;SALDO Fatt.n. 004800194958  del 08/02/2017 CONSUMO ENERGIA ELETTRICA: DIC. 2016 - GEN. 2017;24-03-2017;1014;0;21;1;Spese correnti;3;Acquisto di beni e servizi;2;Acquisto di servizi;5;Utenze e canoni;4;Energia elettrica;2017-03-24;
193;5;"90,49";"16.884,74";ENEL ENERGIA  S.P.A.;Z311457C9E;SALDO Fatt.n. 004800233141  del 12/02/2017 CONSUMO ENERGIA ELETTRICA: DIC. 2016 - GEN. 2017;24-03-2017;1014;0;21;1;Spese correnti;3;Acquisto di beni e servizi;2;Acquisto di servizi;5;Utenze e canoni;4;Energia elettrica;2017-03-24;
193;6;"146,17";"16.884,74";ENEL ENERGIA  S.P.A.;Z311457C9E;SALDO Fatt.n. 004800324221  del 07/03/2017 CONSUMO ENERGIA ELETTRICA: FEBBRAIO 2017;24-03-2017;1014;0;21;1;Spese correnti;3;Acquisto di beni e servizi;2;Acquisto di servizi;5;Utenze e canoni;4;Energia elettrica;2017-03-24;
193;7;"151,23";"16.884,74";ENEL ENERGIA  S.P.A.;Z311457C9E;SALDO Fatt.n. 004800366719  del 12/03/2017 CONSUMO ENERGIA ELETTRICA: FEBBRAIO 2017;24-03-2017;1014;0;21;1;Spese correnti;3;Acquisto di beni e servizi;2;Acquisto di servizi;5;Utenze e canoni;4;Energia elettrica;2017-03-24;
193;8;"171,14";"16.884,74";ENEL ENERGIA  S.P.A.;Z311457C9E;SALDO Fatt.n. 004800192462  del 08/02/2017 CONSUMO ENERGIA ELETTRICA: GENNAIO 2017;24-03-2017;1014;0;21;1;Spese correnti;3;Acquisto di beni e servizi;2;Acquisto di servizi;5;Utenze e canoni;4;Energia elettrica;2017-03-24;
193;9;"172,62";"16.884,74";ENEL ENERGIA  S.P.A.;Z311457C9E;SALDO Fatt.n. 004800284458  del 17/02/2017 CONSUMO ENERGIA ELETTRICA: GENNAIO 2017;24-03-2017;1014;0;21;1;Spese correnti;3;Acquisto di beni e servizi;2;Acquisto di servizi;5;Utenze e canoni;4;Energia elettrica;2017-03-24;
193;10;"319,32";"16.884,74";ENEL ENERGIA  S.P.A.; ;SALDO Fatt.n. 004800312872  del 07/03/2017 CONSUMO ENERGIA ELETTRICA: FEBBRAIO 2017;24-03-2017;1014;0;21;1;Spese correnti;3;Acquisto di beni e servizi;2;Acquisto di servizi;5;Utenze e canoni;4;Energia elettrica;2017-03-24;
193;11;"382,21";"16.884,74";ENEL ENERGIA  S.P.A.;Z311457C9E;SALDO Fatt.n. 004800366717  del 12/03/2017 CONSUMO ENERGIA ELETTRICA: FEBBRAIO 2017;24-03-2017;1014;0;21;1;Spese correnti;3;Acquisto di beni e servizi;2;Acquisto di servizi;5;Utenze e canoni;4;Energia elettrica;2017-03-24;
193;12;"388,17";"16.884,74";ENEL ENERGIA  S.P.A.; ;SALDO Fatt.n. 004800198680  del 08/02/2017 CONSUMO ENERGIA ELETTRICA: GENNAIO 2017;24-03-2017;1014;0;21;1;Spese correnti;3;Acquisto di beni e servizi;2;Acquisto di servizi;5;Utenze e canoni;4;Energia elettrica;2017-03-24;
193;13;"420,91";"16.884,74";ENEL ENERGIA  S.P.A.;Z311457C9E;SALDO Fatt.n. 004800366718  del 12/03/2017 CONSUMO ENERGIA ELETTRICA: FEBBRAIO 2017;24-03-2017;1014;0;21;1;Spese correnti;3;Acquisto di beni e servizi;2;Acquisto di servizi;5;Utenze e canoni;4;Energia elettrica;2017-03-24;
193;14;"426,13";"16.884,74";ENEL ENERGIA  S.P.A.;Z311457C9E;SALDO Fatt.n. 004800324219  del 07/03/2017 CONSUMO ENERGIA ELETTRICA: FEBBRAIO 2017;24-03-2017;1014;0;21;1;Spese correnti;3;Acquisto di beni e servizi;2;Acquisto di servizi;5;Utenze e canoni;4;Energia elettrica;2017-03-24;
193;15;"434,26";"16.884,74";ENEL ENERGIA  S.P.A.;Z311457C9E;SALDO Fatt.n. 004800324220  del 07/03/2017 CONSUMO ENERGIA ELETTRICA: FEBBRAIO 2017;24-03-2017;1014;0;21;1;Spese correnti;3;Acquisto di beni e servizi;2;Acquisto di servizi;5;Utenze e canoni;4;Energia elettrica;2017-03-24;
193;16;"449,41";"16.884,74";ENEL ENERGIA  S.P.A.; ;SALDO Fatt.n. 004800283004  del 17/02/2017 CONSUMO ENERGIA ELETTRICA: GENNAIO 2017;24-03-2017;1014;0;21;1;Spese correnti;3;Acquisto di beni e servizi;2;Acquisto di servizi;5;Utenze e canoni;4;Energia elettrica;2017-03-24;
193;17;"472,07";"16.884,74";ENEL ENERGIA  S.P.A.;Z311457C9E;SALDO Fatt.n. 004800284456  del 17/02/2017 CONSUMO ENERGIA ELETTRICA: GENNAIO 2017;24-03-2017;1014;0;21;1;Spese correnti;3;Acquisto di beni e servizi;2;Acquisto di servizi;5;Utenze e canoni;4;Energia elettrica;2017-03-24;
193;18;"500,31";"16.884,74";ENEL ENERGIA  S.P.A.;Z311457C9E;SALDO Fatt.n. 004800192461  del 08/02/2017 CONSUMO ENERGIA ELETTRICA: GENNAIO 2017;24-03-2017;1014;0;21;1;Spese correnti;3;Acquisto di beni e servizi;2;Acquisto di servizi;5;Utenze e canoni;4;Energia elettrica;2017-03-24;
193;19;"519,93";"16.884,74";ENEL ENERGIA  S.P.A.;Z311457C9E;SALDO Fatt.n. 004800284457  del 17/02/2017 CONSUMO ENERGIA ELETTRICA: GENNAIO 2017;24-03-2017;1014;0;21;1;Spese correnti;3;Acquisto di beni e servizi;2;Acquisto di servizi;5;Utenze e canoni;4;Energia elettrica;2017-03-24;
193;20;"523,26";"16.884,74";ENEL ENERGIA  S.P.A.;Z311457C9E;SALDO Fatt.n. 004800276361  del 15/02/2017 CONSUMO ENERGIA ELETTRICA: GENNAIO 2017;24-03-2017;1014;0;21;1;Spese correnti;3;Acquisto di beni e servizi;2;Acquisto di servizi;5;Utenze e canoni;4;Energia elettrica;2017-03-24;
193;21;"707,30";"16.884,74";ENEL ENERGIA  S.P.A.;Z311457C9E;SALDO Fatt.n. 004800192625  del 08/02/2017 CONSUMO ENERGIA ELETTRICA: GENNAIO 2017;24-03-2017;1014;0;21;1;Spese correnti;3;Acquisto di beni e servizi;2;Acquisto di servizi;5;Utenze e canoni;4;Energia elettrica;2017-03-24;
193;22;"740,88";"16.884,74";ENEL ENERGIA  S.P.A.;Z311457C9E;SALDO Fatt.n. 004800324217  del 07/03/2017 CONSUMO ENERGIA ELETTRICA: FEBBRAIO 2017;24-03-2017;1014;0;21;1;Spese correnti;3;Acquisto di beni e servizi;2;Acquisto di servizi;5;Utenze e canoni;4;Energia elettrica;2017-03-24;
193;23;"756,92";"16.884,74";ENEL ENERGIA  S.P.A.;Z311457C9E;SALDO Fatt.n. 004800366716  del 12/03/2017 CONSUMO ENERGIA ELETTRICA: FEBBRAIO 2017;24-03-2017;1014;0;21;1;Spese correnti;3;Acquisto di beni e servizi;2;Acquisto di servizi;5;Utenze e canoni;4;Energia elettrica;2017-03-24;
193;24;"910,10";"16.884,74";ENEL ENERGIA  S.P.A.;Z311457C9E;SALDO Fatt.n. 004800276359  del 15/02/2017 CONSUMO ENERGIA ELETTRICA: GENNAIO 2017;24-03-2017;1014;0;21;1;Spese correnti;3;Acquisto di beni e servizi;2;Acquisto di servizi;5;Utenze e canoni;4;Energia elettrica;2017-03-24;
193;25;"1.163,62";"16.884,74";ENEL ENERGIA  S.P.A.;Z311457C9E;SALDO Fatt.n. 004800319981  del 07/03/2017 CONSUMO ENERGIA ELETTRICA: FEBBRAIO 2017;24-03-2017;1014;0;21;1;Spese correnti;3;Acquisto di beni e servizi;2;Acquisto di servizi;5;Utenze e canoni;4;Energia elettrica;2017-03-24;
193;26;"1.527,03";"16.884,74";ENEL ENERGIA  S.P.A.;Z311457C9E;SALDO Fatt.n. 004800276234  del 15/02/2017 CONSUMO ENERGIA ELETTRICA: GENNAIO 2017;24-03-2017;1014;0;21;1;Spese correnti;3;Acquisto di beni e servizi;2;Acquisto di servizi;5;Utenze e canoni;4;Energia elettrica;2017-03-24;
193;27;"2.428,84";"16.884,74";ENEL ENERGIA  S.P.A.;Z311457C9E;SALDO Fatt.n. 004800324218  del 07/03/2017 CONSUMO ENERGIA ELETTRICA: FEBBRAIO 2017;24-03-2017;1014;0;21;1;Spese correnti;3;Acquisto di beni e servizi;2;Acquisto di servizi;5;Utenze e canoni;4;Energia elettrica;2017-03-24;
193;28;"2.857,48";"16.884,74";ENEL ENERGIA  S.P.A.;Z311457C9E;SALDO Fatt.n. 004800276360  del 15/02/2017 CONSUMO ENERGIA ELETTRICA: GENNAIO 2017;24-03-2017;1014;0;21;1;Spese correnti;3;Acquisto di beni e servizi;2;Acquisto di servizi;5;Utenze e canoni;4;Energia elettrica;2017-03-24;
194;1;"1.106,40";"1.106,40";CREDITORI DIVERSI (Confr.Allegato); ;STIPENDI MESE DI MARZO;27-03-2017;14;1;0;1;Spese correnti;3;Acquisto di beni e servizi;2;Acquisto di servizi;1;Organi e incarichi istituzionali dell'amministrazione;1;Organi istituzionali dell'amministrazione - Indennità;2017-03-27;
195;1;"195,22";"195,22";CREDITORI DIVERSI (Confr.Allegato); ;STIPENDI MESE DI MARZO;27-03-2017;18;1;0;1;Spese correnti;3;Acquisto di beni e servizi;2;Acquisto di servizi;1;Organi e incarichi istituzionali dell'amministrazione;1;Organi istituzionali dell'amministrazione - Indennità;2017-03-27;
237;1;"2,50";"95,50";LA B.C.C. DEL CROTONESE-TESORERIA COMUNALE; ;SPESE POSTALI A CARICO ENTE DEL 30/03/2017 - PROVVISORIO N. 155974;31-03-2017;156;0;50;1;Spese correnti;3;Acquisto di beni e servizi;2;Acquisto di servizi;17;Servizi finanziari;2;Oneri per servizio di tesoreria;2017-03-31;
237;2;"12,00";"95,50";LA B.C.C. DEL CROTONESE-TESORERIA COMUNALE; ;SPESE POSTALI A CARICO ENTE DEL 24/02/2017 - PROVVISORIO N. 152833;31-03-2017;156;0;50;1;Spese correnti;3;Acquisto di beni e servizi;2;Acquisto di servizi;17;Servizi finanziari;2;Oneri per servizio di tesoreria;2017-03-31;
237;3;"36,00";"95,50";LA B.C.C. DEL CROTONESE-TESORERIA COMUNALE; ;COMMISSIONI SU N. 15 BONIFICI MANDATI ENEL DEL 28/03/2017 - PROVVISORIO N. 155487;31-03-2017;156;0;50;1;Spese correnti;3;Acquisto di beni e servizi;2;Acquisto di servizi;17;Servizi finanziari;2;Oneri per servizio di tesoreria;2017-03-31;
237;4;"45,00";"95,50";LA B.C.C. DEL CROTONESE-TESORERIA COMUNALE; ;COMMISSIONI SU N. 15 BONIFICI MANDATI ENEL DEL 13/02/2017 - PROVVISORIO N. 151748;31-03-2017;156;0;50;1;Spese correnti;3;Acquisto di beni e servizi;2;Acquisto di servizi;17;Servizi finanziari;2;Oneri per servizio di tesoreria;2017-03-31;
238;1;"8.912,74";"8.912,74";DRAMMIS ROSARIO;68648659CD;SALDO Fatt.n. 5/2017  del 31/03/2017 SERVIZIO MENSA SCOLASTICA: MESE DI MARZO 2017;18-04-2017;653;0;211;1;Spese correnti;3;Acquisto di beni e servizi;2;Acquisto di servizi;14;Servizi di ristorazione;999;Altri servizi di ristorazione;2017-04-18;
240;1;"1.106,40";"1.106,40";CREDITORI DIVERSI (Confr.Allegato); ;STIPENDI MESE DI APRILE;28-04-2017;14;1;0;1;Spese correnti;3;Acquisto di beni e servizi;2;Acquisto di servizi;1;Organi e incarichi istituzionali dell'amministrazione;1;Organi istituzionali dell'amministrazione - Indennità;2017-04-28;
241;1;"195,22";"195,22";CREDITORI DIVERSI (Confr.Allegato); ;STIPENDI MESE DI APRILE;28-04-2017;18;1;0;1;Spese correnti;3;Acquisto di beni e servizi;2;Acquisto di servizi;1;Organi e incarichi istituzionali dell'amministrazione;1;Organi istituzionali dell'amministrazione - Indennità;2017-04-28;
278;1;"2.370,00";"2.500,97";ASSOCIAZIONE "MUSICA D'INSIEME";Z881C76CE6;REALIZZAZIONE MANIFESTAZIONI NATALE 2016;02-05-2017;924;0;262;1;Spese correnti;3;Acquisto di beni e servizi;2;Acquisto di servizi;2;"Organizzazione eventi, pubblicita` e servizi per trasferta";5;Organizzazione e partecipazione a manifestazioni e convegni;2017-05-02;
278;2;"0,01";"2.500,97";CARTOLIBRERIA - TIGANO MARIO;Z881C76CE6;ACCONTO Fatt.n. 2  del 23/03/2017 FORNITURA MATERIALE VARIO PER REALIZZAZIONE MANIFESTAZIONI NATALE 2016;02-05-2017;924;0;262;1;Spese correnti;3;Acquisto di beni e servizi;2;Acquisto di servizi;2;"Organizzazione eventi, pubblicita` e servizi per trasferta";5;Organizzazione e partecipazione a manifestazioni e convegni;2017-05-02;
278;3;"130,98";"2.500,97";CARTOLIBRERIA - TIGANO MARIO;Z881C76CE6;SALDO Fatt.n. 2  del 23/03/2017 FORNITURA MATERIALE VARIO PER REALIZZAZIONE MANIFESTAZIONI NATALE 2016;02-05-2017;924;0;262;1;Spese correnti;3;Acquisto di beni e servizi;2;Acquisto di servizi;2;"Organizzazione eventi, pubblicita` e servizi per trasferta";5;Organizzazione e partecipazione a manifestazioni e convegni;2017-05-02;
279;1;"73.796,46";"73.796,46";BASILE GEOMETRA CARLO;6525221EB3;SALDO Fatt.n. FATTPA 4_16  del 20/09/2016 MESSA IN SICUREZZA EDIFICIO SCOLASTICO DI VIA 24 MAGGIO - 2^ STRALCIO-INTERVENTO CODICE N. 00612CAL136:ATTI FINALI;18-05-2017;2484;4;141;2;Spese in conto capitale;2;Investimenti fissi lordi e acquisto di terreni;1;Beni materiali;9;Beni immobili;3;Fabbricati ad uso scolastico;2017-05-18;
280;1;"73,20";"1.303,65";TELECOM ITALIA S.P.A.;Z1D1D320CE;SALDO Fatt.n. 6820170514000295  del 02/05/2017 CANONE TELEFONICO 2^ BIMESTRE  2017- LINEA 096213046022;19-05-2017;118;3;5;1;Spese correnti;3;Acquisto di beni e servizi;2;Acquisto di servizi;5;Utenze e canoni;1;Telefonia fissa;2017-05-19;
280;2;"73,34";"1.303,65";TELECOM ITALIA S.P.A.;Z1D1D320CE;SALDO Fatt.n. 8U00115298  del 09/05/2017 CANONE TELEFONICO 3^ BIMESTRE  2017- LINEA N. 096213046022;19-05-2017;118;3;5;1;Spese correnti;3;Acquisto di beni e servizi;2;Acquisto di servizi;5;Utenze e canoni;1;Telefonia fissa;2017-05-19;
280;3;"110,80";"1.303,65";TELECOM ITALIA S.P.A.;Z1D1D320CE;SALDO Fatt.n. 6820170414005650  del 29/04/2017 CANONE TELEFONICO 2^ BIMESTRE  2017- LINEA: 096213046023;19-05-2017;118;3;5;1;Spese correnti;3;Acquisto di beni e servizi;2;Acquisto di servizi;5;Utenze e canoni;1;Telefonia fissa;2017-05-19;
280;4;"110,01";"1.303,65";TELECOM ITALIA S.P.A.;Z1D1D320CE;SALDO Fatt.n. 8U00114300  del 09/05/2017 CANONE TELEFONICO 3^ BIMESTRE  2017- LINEA N. 096213046023;19-05-2017;118;3;5;1;Spese correnti;3;Acquisto di beni e servizi;2;Acquisto di servizi;5;Utenze e canoni;1;Telefonia fissa;2017-05-19;
280;5;"164,38";"1.303,65";TELECOM ITALIA S.P.A.;Z1D1D320CE;SALDO Fatt.n. 6820170414005646  del 29/04/2017 CANONE TELEFONICO 2^ BIMESTRE  2017- LINEA:0962555829;19-05-2017;118;3;5;1;Spese correnti;3;Acquisto di beni e servizi;2;Acquisto di servizi;5;Utenze e canoni;1;Telefonia fissa;2017-05-19;
280;6;"177,12";"1.303,65";TELECOM ITALIA S.P.A.;Z1D1D320CE;SALDO Fatt.n. 8U00114904  del 09/05/2017 CANONE TELEFONICO 3^ BIMESTRE  2017- LINEA N. 0962555829;19-05-2017;118;3;5;1;Spese correnti;3;Acquisto di beni e servizi;2;Acquisto di servizi;5;Utenze e canoni;1;Telefonia fissa;2017-05-19;
280;7;"288,91";"1.303,65";TELECOM ITALIA S.P.A.;Z1D1D320CE;SALDO Fatt.n. 8U00115313  del 09/05/2017 CANONE TELEFONICO 3^ BIMESTRE  2017- LINEA N. 096251062;19-05-2017;118;3;5;1;Spese correnti;3;Acquisto di beni e servizi;2;Acquisto di servizi;5;Utenze e canoni;1;Telefonia fissa;2017-05-19;
280;8;"307,89";"1.303,65";TELECOM ITALIA S.P.A.;Z1D1D320CE;SALDO Fatt.n. 6820170414005651  del 29/04/2017 CANONE TELEFONICO 2^ BIMESTRE  2017- LINEA:096251062;19-05-2017;118;3;5;1;Spese correnti;3;Acquisto di beni e servizi;2;Acquisto di servizi;5;Utenze e canoni;1;Telefonia fissa;2017-05-19;
281;1;"118,82";"252,45";TELECOM ITALIA S.P.A.;Z1D1D320CE;SALDO Fatt.n. 6820170414005647  del 29/04/2017 CANONE TELEFONICO 2^ BIMESTRE  2017- LINEA N.  096251183;19-05-2017;618;3;6;1;Spese correnti;3;Acquisto di beni e servizi;2;Acquisto di servizi;5;Utenze e canoni;1;Telefonia fissa;2017-05-19;
281;2;"135,63";"252,45";TELECOM ITALIA S.P.A.;Z1D1D320CE;SALDO Fatt.n. 8U00115199  del 09/05/2017 CANONE TELEFONICO 3^ BIMESTRE  2017- LINEA N. 096251183;19-05-2017;618;3;6;1;Spese correnti;3;Acquisto di beni e servizi;2;Acquisto di servizi;5;Utenze e canoni;1;Telefonia fissa;2017-05-19;
282;1;"101,76";"229,56";TELECOM ITALIA S.P.A.;Z1D1D320CE;SALDO Fatt.n. 6820170414005649  del 29/04/2017 CANONE TELEFONICO 2^ BIMESTRE  2017- LINEA N. 096251653;19-05-2017;662;3;7;1;Spese correnti;3;Acquisto di beni e servizi;2;Acquisto di servizi;5;Utenze e canoni;1;Telefonia fissa;2017-05-19;
282;2;"128,80";"229,56";TELECOM ITALIA S.P.A.;Z1D1D320CE;SALDO Fatt.n. 8U00114455  del 09/05/2017 CANONE TELEFONICO 3^ BIMESTRE  2017- LINEA N. 096251653;19-05-2017;662;3;7;1;Spese correnti;3;Acquisto di beni e servizi;2;Acquisto di servizi;5;Utenze e canoni;1;Telefonia fissa;2017-05-19;
283;1;"138,56";"279,59";TELECOM ITALIA S.P.A.;Z1D1D320CE;SALDO Fatt.n. 6820170414005644  del 29/04/2017 CANONE TELEFONICO 3^ BIMESTRE  2017- LINEA N. 0962555832;19-05-2017;716;3;8;1;Spese correnti;3;Acquisto di beni e servizi;2;Acquisto di servizi;5;Utenze e canoni;1;Telefonia fissa;2017-05-19;
283;2;"141,03";"279,59";TELECOM ITALIA S.P.A.;Z1D1D320CE;SALDO Fatt.n. 8U00114073  del 09/05/2017 CANONE TELEFONICO 3^ BIMESTRE  2017- LINEA N. 0962555832;19-05-2017;716;3;8;1;Spese correnti;3;Acquisto di beni e servizi;2;Acquisto di servizi;5;Utenze e canoni;1;Telefonia fissa;2017-05-19;
284;1;"354,17";"1.112,53";ENEL ENERGIA  S.P.A.;Z311457C9E;SALDO Fatt.n. 004800528266  del 12/04/2017 CONSUMO ENERGIA ELETTRICA: FEBBRAIO E MARZO 2017;19-05-2017;118;4;10;1;Spese correnti;3;Acquisto di beni e servizi;2;Acquisto di servizi;5;Utenze e canoni;4;Energia elettrica;2017-05-19;
284;2;"757,36";"1.112,53";ENEL ENERGIA  S.P.A.;Z311457C9E;SALDO Fatt.n. 004800470273  del 07/04/2017 CONSUMO ENERGIA ELETTRICA: FEBBRAIO E MARZO 2017;19-05-2017;118;4;10;1;Spese correnti;3;Acquisto di beni e servizi;2;Acquisto di servizi;5;Utenze e canoni;4;Energia elettrica;2017-05-19;
285;1;"93,19";"878,65";ENEL ENERGIA  S.P.A.;Z311457C9E;SALDO Fatt.n. 004800470278  del 07/04/2017 CONSUMO ENERGIA ELETTRICA: FEBBRAIO E MARZO 2017;19-05-2017;566;4;11;1;Spese correnti;3;Acquisto di beni e servizi;2;Acquisto di servizi;5;Utenze e canoni;4;Energia elettrica;2017-05-19;
285;2;"258,90";"878,65";ENEL ENERGIA  S.P.A.;Z311457C9E;SALDO Fatt.n. 004800470271  del 07/04/2017 CONSUMO ENERGIA ELETTRICA: FEBBRAIO E MARZO 2017;19-05-2017;566;4;11;1;Spese correnti;3;Acquisto di beni e servizi;2;Acquisto di servizi;5;Utenze e canoni;4;Energia elettrica;2017-05-19;
285;3;"527,56";"878,65";ENEL ENERGIA  S.P.A.;Z311457C9E;SALDO Fatt.n. 004800469770  del 07/04/2017 CONSUMO ENERGIA ELETTRICA: FEBBRAIO E MARZO 2017;19-05-2017;566;4;11;1;Spese correnti;3;Acquisto di beni e servizi;2;Acquisto di servizi;5;Utenze e canoni;4;Energia elettrica;2017-05-19;
286;1;"74,13";"186,22";ENEL ENERGIA  S.P.A.;Z311457C9E;SALDO Fatt.n. 004800470275  del 07/04/2017 CONSUMO ENERGIA ELETTRICA: FEBBRAIO E MARZO 2017;19-05-2017;592;4;12;1;Spese correnti;3;Acquisto di beni e servizi;2;Acquisto di servizi;5;Utenze e canoni;4;Energia elettrica;2017-05-19;
286;2;"112,09";"186,22";ENEL ENERGIA  S.P.A.;Z311457C9E;SALDO Fatt.n. 004800470279  del 07/04/2017 CONSUMO ENERGIA ELETTRICA: FEBBRAIO E MARZO 2017;19-05-2017;592;4;12;1;Spese correnti;3;Acquisto di beni e servizi;2;Acquisto di servizi;5;Utenze e canoni;4;Energia elettrica;2017-05-19;
287;1;"312,91";"312,91";ENEL ENERGIA  S.P.A.;Z311457C9E;SALDO Fatt.n. 004800469768  del 07/04/2017 CONSUMO ENERGIA ELETTRICA: FEBBRAIO E MARZO 2017;19-05-2017;618;4;13;1;Spese correnti;3;Acquisto di beni e servizi;2;Acquisto di servizi;5;Utenze e canoni;4;Energia elettrica;2017-05-19;
288;1;"469,29";"469,29";ENEL ENERGIA  S.P.A.;Z311457C9E;SALDO Fatt.n. 004800482204  del 08/04/2017 CONSUMO ENERGIA ELETTRICA: FEBBRAIO E MARZO 2017;19-05-2017;662;4;14;1;Spese correnti;3;Acquisto di beni e servizi;2;Acquisto di servizi;5;Utenze e canoni;4;Energia elettrica;2017-05-19;
289;1;"153,83";"467,88";ENEL ENERGIA  S.P.A.;Z311457C9E;SALDO Fatt.n. 004800470276  del 07/04/2017 CONSUMO ENERGIA ELETTRICA: FEBBRAIO E MARZO 2017;19-05-2017;824;0;16;1;Spese correnti;3;Acquisto di beni e servizi;2;Acquisto di servizi;5;Utenze e canoni;4;Energia elettrica;2017-05-19;
289;2;"314,05";"467,88";ENEL ENERGIA  S.P.A.;Z311457C9E;SALDO Fatt.n. 004800469769  del 07/04/2017 CONSUMO ENERGIA ELETTRICA: FEBBRAIO E MARZO 2017;19-05-2017;824;0;16;1;Spese correnti;3;Acquisto di beni e servizi;2;Acquisto di servizi;5;Utenze e canoni;4;Energia elettrica;2017-05-19;
290;1;"212,01";"212,01";ENEL ENERGIA  S.P.A.;Z311457C9E;SALDO Fatt.n. 004800637917  del 10/05/2017 CONSUMO ENERGIA ELETTRICA: MARZO E APRILE 2017;19-05-2017;905;0;17;1;Spese correnti;3;Acquisto di beni e servizi;2;Acquisto di servizi;5;Utenze e canoni;4;Energia elettrica;2017-05-19;
291;1;"42,75";"91,26";ENEL ENERGIA  S.P.A.;Z311457C9E;SALDO Fatt.n. 004800634120  del 10/05/2017 CONSUMO ENERGIA ELETTRICA: APRILE 2017;19-05-2017;1264;0;18;1;Spese correnti;3;Acquisto di beni e servizi;2;Acquisto di servizi;5;Utenze e canoni;4;Energia elettrica;2017-05-19;
291;2;"50,51";"91,26";ENEL ENERGIA  S.P.A.;Z311457C9E;SALDO Fatt.n. 004800494809  del 10/04/2017 CONSUMO ENERGIA ELETTRICA: MARZO 2017;19-05-2017;1264;0;18;1;Spese correnti;3;Acquisto di beni e servizi;2;Acquisto di servizi;5;Utenze e canoni;4;Energia elettrica;2017-05-19;
292;1;"76,57";"339,66";ENEL ENERGIA  S.P.A.;Z311457C9E;SALDO Fatt.n. 004800470274  del 07/04/2017 CONSUMO ENERGIA ELETTRICA: FEBBRAIO E MARZO 2017;19-05-2017;1488;4;19;1;Spese correnti;3;Acquisto di beni e servizi;2;Acquisto di servizi;5;Utenze e canoni;4;Energia elettrica;2017-05-19;
292;2;"76,26";"339,66";ENEL ENERGIA  S.P.A.;Z311457C9E;SALDO Fatt.n. 004800474378  del 07/04/2017 CONSUMO ENERGIA ELETTRICA: FEBBRAIO E MARZO 2017;19-05-2017;1488;4;19;1;Spese correnti;3;Acquisto di beni e servizi;2;Acquisto di servizi;5;Utenze e canoni;4;Energia elettrica;2017-05-19;
292;3;"187,83";"339,66";ENEL ENERGIA  S.P.A.;Z311457C9E;SALDO Fatt.n. 004800470277  del 07/04/2017 CONSUMO ENERGIA ELETTRICA: FEBBRAIO E MARZO 2017;19-05-2017;1488;4;19;1;Spese correnti;3;Acquisto di beni e servizi;2;Acquisto di servizi;5;Utenze e canoni;4;Energia elettrica;2017-05-19;
293;1;"155,87";"155,87";ENEL ENERGIA  S.P.A.;Z311457C9E;SALDO Fatt.n. 004800470270  del 07/04/2017 CONSUMO ENERGIA ELETTRICA: FEBBRAIO E MARZO 2017;19-05-2017;1588;4;20;1;Spese correnti;3;Acquisto di beni e servizi;2;Acquisto di servizi;5;Utenze e canoni;4;Energia elettrica;2017-05-19;
294;1;"821,26";"1.722,53";ENEL ENERGIA  S.P.A.;Z311457C9E;SALDO Fatt.n. 004800464590  del 07/04/2017 CONSUMO ENERGIA ELETTRICA: MARZO 2017;19-05-2017;716;4;15;1;Spese correnti;3;Acquisto di beni e servizi;2;Acquisto di servizi;5;Utenze e canoni;4;Energia elettrica;2017-05-19;
294;2;"900,27";"1.722,53";ENEL ENERGIA  S.P.A.;Z311457C9E;SALDO Fatt.n. 004800619867  del 08/05/2017 CONSUMO ENERGIA ELETTRICA: APRILE 2017;19-05-2017;716;4;15;1;Spese correnti;3;Acquisto di beni e servizi;2;Acquisto di servizi;5;Utenze e canoni;4;Energia elettrica;2017-05-19;
295;1;"19,03";"14.758,25";ENEL ENERGIA  S.P.A.;Z311457C9E;SALDO Fatt.n. 004800617532  del 08/05/2017 CONSUMO ENERGIA ELETTRICA: APRILE 2017;19-05-2017;1014;0;21;1;Spese correnti;3;Acquisto di beni e servizi;2;Acquisto di servizi;5;Utenze e canoni;4;Energia elettrica;2017-05-19;
295;2;"20,75";"14.758,25";ENEL ENERGIA  S.P.A.;Z311457C9E;SALDO Fatt.n. 004800466344  del 07/04/2017 CONSUMO ENERGIA ELETTRICA: MARZO 2017;19-05-2017;1014;0;21;1;Spese correnti;3;Acquisto di beni e servizi;2;Acquisto di servizi;5;Utenze e canoni;4;Energia elettrica;2017-05-19;
295;3;"35,33";"14.758,25";ENEL ENERGIA  S.P.A.;Z311457C9E;SALDO Fatt.n. 004800470272  del 07/04/2017 CONSUMO ENERGIA ELETTRICA: FEBBRAIO E MARZO 2017;19-05-2017;1014;0;21;1;Spese correnti;3;Acquisto di beni e servizi;2;Acquisto di servizi;5;Utenze e canoni;4;Energia elettrica;2017-05-19;
295;4;"46,35";"14.758,25";ENEL ENERGIA  S.P.A.;Z311457C9E;SALDO Fatt.n. 004800617275  del 08/05/2017 CONSUMO ENERGIA ELETTRICA: APRILE 2017;19-05-2017;1014;0;21;1;Spese correnti;3;Acquisto di beni e servizi;2;Acquisto di servizi;5;Utenze e canoni;4;Energia elettrica;2017-05-19;
295;5;"56,71";"14.758,25";ENEL ENERGIA  S.P.A.;Z311457C9E;SALDO Fatt.n. 004800474376  del 07/04/2017 CONSUMO ENERGIA ELETTRICA: MARZO 2017;19-05-2017;1014;0;21;1;Spese correnti;3;Acquisto di beni e servizi;2;Acquisto di servizi;5;Utenze e canoni;4;Energia elettrica;2017-05-19;
295;6;"76,57";"14.758,25";ENEL ENERGIA  S.P.A.;Z311457C9E;SALDO Fatt.n. 004800474377  del 07/04/2017 CONSUMO ENERGIA ELETTRICA: FEBBRAIO E MARZO 2017;19-05-2017;1014;0;21;1;Spese correnti;3;Acquisto di beni e servizi;2;Acquisto di servizi;5;Utenze e canoni;4;Energia elettrica;2017-05-19;
295;7;"80,51";"14.758,25";ENEL ENERGIA  S.P.A.;Z311457C9E;SALDO Fatt.n. 004800528265  del 12/04/2017 CONSUMO ENERGIA ELETTRICA: FEBBRAIO E MARZO 2017;19-05-2017;1014;0;21;1;Spese correnti;3;Acquisto di beni e servizi;2;Acquisto di servizi;5;Utenze e canoni;4;Energia elettrica;2017-05-19;
295;8;"125,57";"14.758,25";ENEL ENERGIA  S.P.A.;Z311457C9E;SALDO Fatt.n. 004800623705  del 08/05/2017 CONSUMO ENERGIA ELETTRICA: APRILE 2017;19-05-2017;1014;0;21;1;Spese correnti;3;Acquisto di beni e servizi;2;Acquisto di servizi;5;Utenze e canoni;4;Energia elettrica;2017-05-19;
295;9;"137,24";"14.758,25";ENEL ENERGIA  S.P.A.;Z311457C9E;SALDO Fatt.n. 004800664164  del 12/05/2017 CONSUMO ENERGIA ELETTRICA: APRILE 2017;19-05-2017;1014;0;21;1;Spese correnti;3;Acquisto di beni e servizi;2;Acquisto di servizi;5;Utenze e canoni;4;Energia elettrica;2017-05-19;
295;10;"150,56";"14.758,25";ENEL ENERGIA  S.P.A.;Z311457C9E;SALDO Fatt.n. 004800528264  del 12/04/2017 CONSUMO ENERGIA ELETTRICA: MARZO 2017;19-05-2017;1014;0;21;1;Spese correnti;3;Acquisto di beni e servizi;2;Acquisto di servizi;5;Utenze e canoni;4;Energia elettrica;2017-05-19;
295;11;"150,00";"14.758,25";ENEL ENERGIA  S.P.A.;Z311457C9E;SALDO Fatt.n. 004800469767  del 07/04/2017 CONSUMO ENERGIA ELETTRICA: MARZO 2017;19-05-2017;1014;0;21;1;Spese correnti;3;Acquisto di beni e servizi;2;Acquisto di servizi;5;Utenze e canoni;4;Energia elettrica;2017-05-19;
295;12;"267,75";"14.758,25";ENEL ENERGIA  S.P.A.;Z311457C9E;SALDO Fatt.n. 004800609202  del 08/05/2017 CONSUMO ENERGIA ELETTRICA: APRILE 2017;19-05-2017;1014;0;21;1;Spese correnti;3;Acquisto di beni e servizi;2;Acquisto di servizi;5;Utenze e canoni;4;Energia elettrica;2017-05-19;
295;13;"314,92";"14.758,25";ENEL ENERGIA  S.P.A.;Z311457C9E;SALDO Fatt.n. 004800664162  del 12/05/2017 CONSUMO ENERGIA ELETTRICA: APRILE 2017;19-05-2017;1014;0;21;1;Spese correnti;3;Acquisto di beni e servizi;2;Acquisto di servizi;5;Utenze e canoni;4;Energia elettrica;2017-05-19;
295;14;"320,87";"14.758,25";ENEL ENERGIA  S.P.A.;Z311457C9E;SALDO Fatt.n. 004800461198  del 07/04/2017 CONSUMO ENERGIA ELETTRICA: MARZO 2017;19-05-2017;1014;0;21;1;Spese correnti;3;Acquisto di beni e servizi;2;Acquisto di servizi;5;Utenze e canoni;4;Energia elettrica;2017-05-19;
295;15;"364,80";"14.758,25";ENEL ENERGIA  S.P.A.;Z311457C9E;SALDO Fatt.n. 004800623703  del 08/05/2017 CONSUMO ENERGIA ELETTRICA: APRILE 2017;19-05-2017;1014;0;21;1;Spese correnti;3;Acquisto di beni e servizi;2;Acquisto di servizi;5;Utenze e canoni;4;Energia elettrica;2017-05-19;
295;16;"371,50";"14.758,25";ENEL ENERGIA  S.P.A.;Z311457C9E;SALDO Fatt.n. 004800623704  del 08/05/2017 CONSUMO ENERGIA ELETTRICA: APRILE 2017;19-05-2017;1014;0;21;1;Spese correnti;3;Acquisto di beni e servizi;2;Acquisto di servizi;5;Utenze e canoni;4;Energia elettrica;2017-05-19;
295;17;"382,76";"14.758,25";ENEL ENERGIA  S.P.A.;Z311457C9E;SALDO Fatt.n. 004800528262  del 12/04/2017 CONSUMO ENERGIA ELETTRICA: MARZO 2017;19-05-2017;1014;0;21;1;Spese correnti;3;Acquisto di beni e servizi;2;Acquisto di servizi;5;Utenze e canoni;4;Energia elettrica;2017-05-19;
295;18;"439,49";"14.758,25";ENEL ENERGIA  S.P.A.;Z311457C9E;SALDO Fatt.n. 004800482203  del 08/04/2017 CONSUMO ENERGIA ELETTRICA: MARZO 2017;19-05-2017;1014;0;21;1;Spese correnti;3;Acquisto di beni e servizi;2;Acquisto di servizi;5;Utenze e canoni;4;Energia elettrica;2017-05-19;
295;19;"446,13";"14.758,25";ENEL ENERGIA  S.P.A.;Z311457C9E;SALDO Fatt.n. 004800469766  del 07/04/2017 CONSUMO ENERGIA ELETTRICA: MARZO 2017;19-05-2017;1014;0;21;1;Spese correnti;3;Acquisto di beni e servizi;2;Acquisto di servizi;5;Utenze e canoni;4;Energia elettrica;2017-05-19;
295;20;"447,73";"14.758,25";ENEL ENERGIA  S.P.A.;Z311457C9E;SALDO Fatt.n. 004800664163  del 12/05/2017 CONSUMO ENERGIA ELETTRICA: APRILE 2017;19-05-2017;1014;0;21;1;Spese correnti;3;Acquisto di beni e servizi;2;Acquisto di servizi;5;Utenze e canoni;4;Energia elettrica;2017-05-19;
295;21;"627,40";"14.758,25";ENEL ENERGIA  S.P.A.;Z311457C9E;SALDO Fatt.n. 004800623701  del 08/05/2017 CONSUMO ENERGIA ELETTRICA: APRILE 2017;19-05-2017;1014;0;21;1;Spese correnti;3;Acquisto di beni e servizi;2;Acquisto di servizi;5;Utenze e canoni;4;Energia elettrica;2017-05-19;
295;22;"666,10";"14.758,25";ENEL ENERGIA  S.P.A.;Z311457C9E;SALDO Fatt.n. 004800624205  del 08/05/2017 CONSUMO ENERGIA ELETTRICA: APRILE 2017;19-05-2017;1014;0;21;1;Spese correnti;3;Acquisto di beni e servizi;2;Acquisto di servizi;5;Utenze e canoni;4;Energia elettrica;2017-05-19;
295;23;"784,68";"14.758,25";ENEL ENERGIA  S.P.A.;Z311457C9E;SALDO Fatt.n. 004800482202  del 08/04/2017 CONSUMO ENERGIA ELETTRICA: MARZO 2017;19-05-2017;1014;0;21;1;Spese correnti;3;Acquisto di beni e servizi;2;Acquisto di servizi;5;Utenze e canoni;4;Energia elettrica;2017-05-19;
295;24;"821,10";"14.758,25";ENEL ENERGIA  S.P.A.;Z311457C9E;SALDO Fatt.n. 004800470269  del 07/04/2017 CONSUMO ENERGIA ELETTRICA: MARZO 2017;19-05-2017;1014;0;21;1;Spese correnti;3;Acquisto di beni e servizi;2;Acquisto di servizi;5;Utenze e canoni;4;Energia elettrica;2017-05-19;
295;25;"957,72";"14.758,25";ENEL ENERGIA  S.P.A.;Z311457C9E;SALDO Fatt.n. 004800528263  del 12/04/2017 CONSUMO ENERGIA ELETTRICA: MARZO 2017;19-05-2017;1014;0;21;1;Spese correnti;3;Acquisto di beni e servizi;2;Acquisto di servizi;5;Utenze e canoni;4;Energia elettrica;2017-05-19;
295;26;"990,35";"14.758,25";ENEL ENERGIA  S.P.A.;Z311457C9E;SALDO Fatt.n. 004800624204  del 08/05/2017 CONSUMO ENERGIA ELETTRICA: APRILE 2017;19-05-2017;1014;0;21;1;Spese correnti;3;Acquisto di beni e servizi;2;Acquisto di servizi;5;Utenze e canoni;4;Energia elettrica;2017-05-19;
295;27;"1.194,16";"14.758,25";ENEL ENERGIA  S.P.A.;Z311457C9E;SALDO Fatt.n. 004800470268  del 07/04/2017 CONSUMO ENERGIA ELETTRICA: MARZO 2017;19-05-2017;1014;0;21;1;Spese correnti;3;Acquisto di beni e servizi;2;Acquisto di servizi;5;Utenze e canoni;4;Energia elettrica;2017-05-19;
295;28;"2.004,72";"14.758,25";ENEL ENERGIA  S.P.A.;Z311457C9E;SALDO Fatt.n. 004800623702  del 08/05/2017 CONSUMO ENERGIA ELETTRICA: APRILE 2017;19-05-2017;1014;0;21;1;Spese correnti;3;Acquisto di beni e servizi;2;Acquisto di servizi;5;Utenze e canoni;4;Energia elettrica;2017-05-19;
295;29;"2.473,45";"14.758,25";ENEL ENERGIA  S.P.A.;Z311457C9E;SALDO Fatt.n. 004800469765  del 07/04/2017 CONSUMO ENERGIA ELETTRICA: MARZO 2017;19-05-2017;1014;0;21;1;Spese correnti;3;Acquisto di beni e servizi;2;Acquisto di servizi;5;Utenze e canoni;4;Energia elettrica;2017-05-19;
296;1;"275,50";"275,50";FINBUC S.R.L.;Z4D1DBEC27;SALDO Fatt.n. 000399/PA  del 29/03/2017 ACQUISTO TONER PER STAMPANTE UFFICIO RAGIONERIA;19-05-2017;82;3;43;1;Spese correnti;3;Acquisto di beni e servizi;1;Acquisto di beni;2;Altri beni di consumo;999;Altri beni e materiali di consumo n.a.c.;2017-05-19;
297;1;"122,00";"354,80";MAGGIOLI S.P.A.;ZE61912299;SALDO Fatt.n. 0002109770  del 20/03/2017 ABBONAMENTO ENTI.IT AREA SEGRETERIA E PERSONALE: ANNUALITA' 2017;19-05-2017;103;0;47;1;Spese correnti;3;Acquisto di beni e servizi;2;Acquisto di servizi;4;Acquisto di servizi per formazione e addestramento del personale dell'ente;999;Acquisto di servizi per altre spese per formazione e addestramento n.a.c.;2017-05-19;
297;2;"232,80";"354,80";MAGGIOLI S.P.A.;ZE61912299;SALDO Fatt.n. 0002109769  del 20/03/2017 ABBONAMENTO ENTI.IT AREA FINANZIARIA-TRIBUTI: ANNUALITA' 2017;19-05-2017;103;0;47;1;Spese correnti;3;Acquisto di beni e servizi;2;Acquisto di servizi;4;Acquisto di servizi per formazione e addestramento del personale dell'ente;999;Acquisto di servizi per altre spese per formazione e addestramento n.a.c.;2017-05-19;
298;1;"1.830,00";"1.830,00";KIBERNETES S.R.L. - RC;Z061D056B5;SALDO Fatt.n. 0000095/PAE  del 14/03/2017 SERVIZIO FORMAZIONE IN HOUSE SUL TEMA "NUOVO ORDINAMENTO CONTABILE": ACCONTO;19-05-2017;119;0;9;1;Spese correnti;3;Acquisto di beni e servizi;2;Acquisto di servizi;4;Acquisto di servizi per formazione e addestramento del personale dell'ente;999;Acquisto di servizi per altre spese per formazione e addestramento n.a.c.;2017-05-19;
299;1;"5.062,75";"5.062,75";DRAMMIS ROSARIO;68648659CD;SALDO Fatt.n. 7/2017  del 02/05/2017 SERVIZIO MENSA SCOLASTICA APRILE 2017;24-05-2017;653;0;211;1;Spese correnti;3;Acquisto di beni e servizi;2;Acquisto di servizi;14;Servizi di ristorazione;999;Altri servizi di ristorazione;2017-05-24;
300;1;"110,00";"110,00";MICHELE AFFIDATO ORAFO S.R.L.;Z811E1F3B3;SALDO Fatt.n. 14/PA  del 19/04/2017 TARGA ONORARIA CONIUGI NIALL E KAY ALLSOP;24-05-2017;8;0;52;1;Spese correnti;3;Acquisto di beni e servizi;1;Acquisto di beni;2;Altri beni di consumo;9;Beni per attività di rappresentanza;2017-05-24;
301;1;"67,10";"67,10";MAGGIOLI S.P.A.;ZCB1D4D8DF;SALDO Fatt.n. 0002117367  del 30/04/2017 ACQUISTO REGISTRI DEFINITIVI DELLE UNIONI CIVILI ANNO 2017;24-05-2017;274;3;26;1;Spese correnti;3;Acquisto di beni e servizi;1;Acquisto di beni;2;Altri beni di consumo;1;"Carta, cancelleria e stampati";2017-05-24;
302;1;"798,00";"798,00";SERVIZI ASSICURATIVI S.N.C.DI ALESSIO BERNARDO - UNIPOL;Z9D1E1F658;RCA AUTOCARRO SERVIZIO MENSA SCOLASTICA TARGATO BM931SX: DAL 01/04/2017 AL 01/04/2018;24-05-2017;654;6;53;1;Spese correnti;10;Altre spese correnti;4;Premi di assicurazione;1;Premi di assicurazione contro i danni;3;Premi di assicurazione per responsabilità civile verso terzi;2017-05-24;
303;1;"366,00";"366,00";STAMPA LIBERA SOCIETA' COOPERATIVA A.R.L.;Z9C15FDA92;SALDO Fatt.n. 11/B  del 29/06/2016 REALIZZAZIONE PROGETTO YOUTH IN EUROPE EVIDENCE BASED DRUG: PUBBLICAZIONE SU "IL CROTONESE" DEL 14/05/2016;24-05-2017;1413;0;262;1;Spese correnti;3;Acquisto di beni e servizi;2;Acquisto di servizi;99;Altri servizi;999;Altri servizi diversi n.a.c.;2017-05-24;
304;1;"1.464,00";"1.464,00";CAPUTO ROBERTA;Z9C15FDA92;SALDO Fatt.n. FATTPA 2_16  del 16/12/2016 REALIZZAZIONE PROGETTO YOUTH IN EUROPE EVIDENCE BASED DRUG: SALDO CONSULENZA;24-05-2017;1413;0;140;1;Spese correnti;3;Acquisto di beni e servizi;2;Acquisto di servizi;99;Altri servizi;999;Altri servizi diversi n.a.c.;2017-05-24;
305;1;"461,14";"980,34";GABRIELE GIUSEPPE - PANIFICIO;ZC01C7D050;SALDO Fatt.n. 1/PA  del 14/12/2016 FORNITURA PANE E DERIVATI PER MENSA SCOLASTICA;24-05-2017;640;3;78;1;Spese correnti;3;Acquisto di beni e servizi;1;Acquisto di beni;2;Altri beni di consumo;11;Generi alimentari;2017-05-24;
305;2;"519,20";"980,34";IL FORNO S.A.S. DI TIGANO ANTONIO;ZC01C7D050;SALDO Fatt.n. 01  del 31/03/2016 FORNITURA PANE E DERIVATI PER MENSA SCOLASTICA;24-05-2017;640;3;78;1;Spese correnti;3;Acquisto di beni e servizi;1;Acquisto di beni;2;Altri beni di consumo;11;Generi alimentari;2017-05-24;
306;1;"110,00";"110,00";MICHELE AFFIDATO ORAFO S.R.L.;Z3A1D90B9A;SALDO Fatt.n. 11/PA  del 03/03/2017 REALIZZAZIONE TARGA ONORARIA SIG. MARZANO LEONARDO;25-05-2017;8;0;41;1;Spese correnti;3;Acquisto di beni e servizi;1;Acquisto di beni;2;Altri beni di consumo;9;Beni per attività di rappresentanza;2017-05-25;
307;1;"180,00";"180,00";ASSOCIAZIONE MUSICA HISTORICA;ZC18A0A42;REALIZZAZIONE MANIFESTAZIONI 1^ SEMESTRE 2016: ACCONTO FESTA MEDIEVALE MAGGIO 2016;25-05-2017;717;0;19;1;Spese correnti;3;Acquisto di beni e servizi;2;Acquisto di servizi;2;"Organizzazione eventi, pubblicita` e servizi per trasferta";5;Organizzazione e partecipazione a manifestazioni e convegni;2017-05-25;
308;1;"120,00";"120,00";ASSOCIAZIONE MUSICA HISTORICA;Z9A1B00FFD;SALDO FESTA MEDIEVALE MESE DI MAGGIO 2016;25-05-2017;717;0;125;1;Spese correnti;3;Acquisto di beni e servizi;2;Acquisto di servizi;2;"Organizzazione eventi, pubblicita` e servizi per trasferta";5;Organizzazione e partecipazione a manifestazioni e convegni;2017-05-25;
309;1;"300,00";"300,00";VIRELLI PIERLUIGI;Z9A1B00FFD;FESTA MEDIEVALE "SUONATORE ITINERANTE";25-05-2017;717;0;125;1;Spese correnti;3;Acquisto di beni e servizi;2;Acquisto di servizi;2;"Organizzazione eventi, pubblicita` e servizi per trasferta";5;Organizzazione e partecipazione a manifestazioni e convegni;2017-05-25;
311;1;"1.733,07";"1.733,07";CARDELLI VIAGGI DI BORDA LUISA;6944731D4E;SALDO Fatt.n. 21  del 10/04/2017 SERVIZIO TRASPORTO SCOLASTICO: DALL'01/02/2017 AL 15/02/2017;25-05-2017;668;0;31;1;Spese correnti;3;Acquisto di beni e servizi;2;Acquisto di servizi;15;Contratti di servizio pubblico;2;Contratti di servizio di trasporto scolastico;2017-05-25;
312;1;"1.940,43";"6.120,83";CARDELLI VIAGGI DI BORDA LUISA;6944731D4E;SALDO Fatt.n. 22  del 10/04/2017 SERVIZIO TRASPORTO SCOLASTICO: DAL 16/02/2017 AL 28/02/2017;25-05-2017;668;0;31;1;Spese correnti;3;Acquisto di beni e servizi;2;Acquisto di servizi;15;Contratti di servizio pubblico;2;Contratti di servizio di trasporto scolastico;2017-05-25;
312;2;"4.179,40";"6.120,83";CARDELLI VIAGGI DI BORDA LUISA;6944731D4E;SALDO Fatt.n. 23  del 10/04/2017 SERVIZIO TRASPORTO SCOLASTICO: MESE DI MARZO 2017;25-05-2017;668;0;31;1;Spese correnti;3;Acquisto di beni e servizi;2;Acquisto di servizi;15;Contratti di servizio pubblico;2;Contratti di servizio di trasporto scolastico;2017-05-25;
313;1;"0,01";"740,00";LA LOCANDA DEL RE DI NIECKO & C. S.A.S.;Z391C59B74;ACCONTO Fatt.n. 2/PA  del 24/02/2017 PROGETTO CASTELFIABA-EVENTI CULTURALI 2016 (F.U.C.): SERVIZI DI PERNOTTAMENTO ARTISTI;25-05-2017;720;0;261;1;Spese correnti;3;Acquisto di beni e servizi;2;Acquisto di servizi;2;"Organizzazione eventi, pubblicita` e servizi per trasferta";5;Organizzazione e partecipazione a manifestazioni e convegni;2017-05-25;
313;2;"740,99";"740,00";LA LOCANDA DEL RE DI NIECKO & C. S.A.S.;Z391C59B74;SALDO Fatt.n. 2/PA  del 24/02/2017 PROGETTO CASTELFIABA-EVENTI CULTURALI 2016 (F.U.C.): SERVIZI DI PERNOTTAMENTO ARTISTI;25-05-2017;720;0;261;1;Spese correnti;3;Acquisto di beni e servizi;2;Acquisto di servizi;2;"Organizzazione eventi, pubblicita` e servizi per trasferta";5;Organizzazione e partecipazione a manifestazioni e convegni;2017-05-25;
314;1;"55,90";"55,90";MAGGIOLI S.P.A.;ZAB1D48F89;SALDO Fatt.n. 0002106201  del 20/02/2017 ACQUISTO BLOCCHETTI VERBALI SERVIZIO POLIZIA MUNICIPALE;25-05-2017;82;3;29;1;Spese correnti;3;Acquisto di beni e servizi;1;Acquisto di beni;2;Altri beni di consumo;1;"Carta, cancelleria e stampati";2017-05-25;
315;1;"976,00";"976,00";COOP. CENTRO R.A.T.SocietÃ  Cooperativa a r. l.;ZF51A6CC40;SALDO Fatt.n. 03-pa  del 30/12/2016 VALORIZZAZIONE CASTELLO 2016-EVENTI DI PROMOZIONE CULTURALE - FESTIVAL INTERNAZIONALE DELLE ARTI DAL 20 AL 27 AGOSTO 2016: NOLEGGIO E SUPPORTO TECNICO ARTISTI INTERNAZIONALI DELLE ARTI;25-05-2017;718;0;145;1;Spese correnti;3;Acquisto di beni e servizi;2;Acquisto di servizi;2;"Organizzazione eventi, pubblicita` e servizi per trasferta";5;Organizzazione e partecipazione a manifestazioni e convegni;2017-05-25;
316;1;"610,00";"610,00";TECNOFER DI GAETANO BRUGNANO;ZFA1A6CBA3;SALDO Fatt.n. 3  del 28/02/2017 VALORIZZAZIONE CASTELLO 2016: ACQUISTO MATERIALE PER INTERVENTI DI MANUTENZIONE PORTONE CASTELLO;25-05-2017;2686;0;106;2;Spese in conto capitale;2;Investimenti fissi lordi e acquisto di terreni;1;Beni materiali;9;Beni immobili;18;"Musei, teatri e biblioteche";2017-05-25;
317;1;"994,50";"994,50";RIZZA ANTONIO;ZFA1A6CBA3;SALDO Fatt.n. 1  del 25/02/2017 VALORIZZAZIONE CASTELLO 2016: INTERVENTI DI MANUTENZIONE PORTONE CASTELLO;25-05-2017;2686;0;106;2;Spese in conto capitale;2;Investimenti fissi lordi e acquisto di terreni;1;Beni materiali;9;Beni immobili;18;"Musei, teatri e biblioteche";2017-05-25;
318;1;"292,58";"292,58";MONDOFFICE S.R.L.;Z1C1E4EAD0;SALDO Fatt.n. 30016477  del 28/04/2017 ACQUISTO CARTA FORMATO A4 PER GLI UFFICI COMUNALI;25-05-2017;82;3;77;1;Spese correnti;3;Acquisto di beni e servizi;1;Acquisto di beni;2;Altri beni di consumo;1;"Carta, cancelleria e stampati";2017-05-25;
319;1;"55,90";"55,90";ECONOMO COMUNALE; ;RIMBORSO SPESA ANTICIPATA DALL'ECONOMO: 1^ TRIM.  2017;25-05-2017;8;0;55;1;Spese correnti;3;Acquisto di beni e servizi;1;Acquisto di beni;2;Altri beni di consumo;9;Beni per attività di rappresentanza;2017-05-25;
320;1;"173,20";"173,20";ECONOMO COMUNALE; ;RIMBORSO SPESA ANTICIPATA DALL'ECONOMO: 1^ TRIM.  2017;25-05-2017;82;3;57;1;Spese correnti;3;Acquisto di beni e servizi;1;Acquisto di beni;2;Altri beni di consumo;1;"Carta, cancelleria e stampati";2017-05-25;
321;1;"42,00";"42,00";ECONOMO COMUNALE; ;RIMBORSO SPESA ANTICIPATA DALL'ECONOMO: 1^ TRIM.  2017;25-05-2017;82;5;56;1;Spese correnti;3;Acquisto di beni e servizi;1;Acquisto di beni;5;Medicinali e altri beni di consumo sanitario;1;Prodotti farmaceutici ed emoderivati;2017-05-25;
322;1;"30,40";"30,40";ECONOMO COMUNALE; ;RIMBORSO SPESA ANTICIPATA DALL'ECONOMO: 1^ TRIM.  2017;25-05-2017;118;0;58;1;Spese correnti;3;Acquisto di beni e servizi;2;Acquisto di servizi;16;Servizi amministrativi;2;Spese postali;2017-05-25;
323;1;"25,00";"25,00";ECONOMO COMUNALE; ;RIMBORSO SPESA ANTICIPATA DALL'ECONOMO: 1^ TRIM.  2017;25-05-2017;202;1;59;1;Spese correnti;7;Interessi passivi;6;Altri interessi passivi;99;Altri interessi passivi diversi;999;Altri interessi passivi ad altri soggetti;2017-05-25;
324;1;"160,30";"160,30";ECONOMO COMUNALE; ;RIMBORSO SPESA ANTICIPATA DALL'ECONOMO: 1^ TRIM.  2017;25-05-2017;274;3;60;1;Spese correnti;3;Acquisto di beni e servizi;1;Acquisto di beni;2;Altri beni di consumo;1;"Carta, cancelleria e stampati";2017-05-25;
325;1;"37,96";"37,96";ECONOMO COMUNALE; ;RIMBORSO SPESA ANTICIPATA DALL'ECONOMO: 1^ TRIM.  2017;25-05-2017;660;0;61;1;Spese correnti;3;Acquisto di beni e servizi;2;Acquisto di servizi;99;Altri servizi;999;Altri servizi diversi n.a.c.;2017-05-25;
328;1;"98,60";"98,60";ECONOMO COMUNALE; ;RIMBORSO SPESA ANTICIPATA DALL'ECONOMO: 1^ TRIM.  2017;25-05-2017;1008;1;63;1;Spese correnti;3;Acquisto di beni e servizi;1;Acquisto di beni;2;Altri beni di consumo;999;Altri beni e materiali di consumo n.a.c.;2017-05-25;
329;1;"95,00";"95,00";ECONOMO COMUNALE; ;RIMBORSO SPESA ANTICIPATA DALL'ECONOMO: 1^ TRIM.  2017;25-05-2017;1008;9;64;1;Spese correnti;3;Acquisto di beni e servizi;1;Acquisto di beni;2;Altri beni di consumo;2;"Carburanti, combustibili e lubrificanti";2017-05-25;
331;1;"3,99";"3,99";ECONOMO COMUNALE; ;RIMBORSO SPESA ANTICIPATA DALL'ECONOMO: 1^ TRIM.  2017;25-05-2017;1250;2;69;1;Spese correnti;3;Acquisto di beni e servizi;1;Acquisto di beni;2;Altri beni di consumo;999;Altri beni e materiali di consumo n.a.c.;2017-05-25;
334;1;"108,50";"108,50";ECONOMO COMUNALE;ZFA1A6CBA3;VALORIZZAZIONE CASTELLO 2016: ACQUISTO DI BENI INTERVENTI DI MANUTENZIONE;25-05-2017;2686;0;106;2;Spese in conto capitale;2;Investimenti fissi lordi e acquisto di terreni;1;Beni materiali;9;Beni immobili;18;"Musei, teatri e biblioteche";2017-05-25;
335;1;"17.728,46";"17.728,46";CASSA DEPOSITI E PRESTITI-S.P.A.; ;102GC - CODICE 3687 - RATE DEBITI P.A. 31/05/2017 - INTERESSI PASSIVI;25-05-2017;165;0;0;1;Spese correnti;7;Interessi passivi;6;Altri interessi passivi;4;Interessi passivi su anticipazioni di tesoreria degli istituti tesorieri/cassieri;1;Interessi passivi su anticipazioni di tesoreria degli istituti tesorieri/cassieri;2017-05-25;
337;1;"175,00";"175,00";A.N.U.T.E.L.; ;QUOTA ADESIONE ANNO 2016;25-05-2017;134;0;172;1;Spese correnti;3;Acquisto di beni e servizi;2;Acquisto di servizi;99;Altri servizi;3;Quote di associazioni;2017-05-25;
338;1;"304,00";"304,00";SERVIZI ASSICURATIVI S.N.C.DI ALESSIO BERNARDO - UNIPOL;Z1B1DAC73E;POLIZZA RCA MOTOCARRO VERDE PUBBLICO TARGATO CZ 095771;27-05-2017;1302;0;39;1;Spese correnti;10;Altre spese correnti;4;Premi di assicurazione;1;Premi di assicurazione contro i danni;3;Premi di assicurazione per responsabilità civile verso terzi;2017-05-27;
339;1;"2.500,00";"2.500,00";FUOCO TOMMASO;ZA41C65B0D;"SALDO Fatt.n. 31/PA  del 30/12/2016 NOLEGGIO, INSTALLAZIONE, ASSISTENZA E SMONTAGGIO LUMINARIE NATALE 2016";27-05-2017;924;0;254;1;Spese correnti;3;Acquisto di beni e servizi;2;Acquisto di servizi;2;"Organizzazione eventi, pubblicita` e servizi per trasferta";5;Organizzazione e partecipazione a manifestazioni e convegni;2017-05-27;
340;1;"367,17";"367,17";CERAMICHE MARAZZITA DI SALVATORE MARAZZITA & C.;ZB61D5CC40;SALDO Fatt.n. 3  del 18/02/2017 FORNITURA MATERIALE PER SISTEMAZIONE FOSSO DI RACCOLTA ACQUE BIANCHE LOC. BIVIO ARANGO-SP 24;27-05-2017;958;1;28;1;Spese correnti;3;Acquisto di beni e servizi;1;Acquisto di beni;2;Altri beni di consumo;999;Altri beni e materiali di consumo n.a.c.;2017-05-27;
341;1;"525,60";"1.573,75";Q8 QUASER S.R.L.;ZC51D231C0;SALDO Fatt.n. 0030025785  del 22/03/2017 FORNITURA GASOLIO DA RISCALDAMENTO PER LE SCUOLE DELL'OBBLIGO;27-05-2017;616;4;3;1;Spese correnti;3;Acquisto di beni e servizi;1;Acquisto di beni;2;Altri beni di consumo;2;"Carburanti, combustibili e lubrificanti";2017-05-27;
341;2;"1.048,15";"1.573,75";Q8 QUASER S.R.L.;ZC51D231C0;SALDO Fatt.n. 0030025784  del 22/03/2017 FORNITURA GASOLIO DA RISCALDAMENTO PER LE SCUOLE DELL'OBBLIGO;27-05-2017;616;4;3;1;Spese correnti;3;Acquisto di beni e servizi;1;Acquisto di beni;2;Altri beni di consumo;2;"Carburanti, combustibili e lubrificanti";2017-05-27;
342;1;"3.537,64";"3.537,64";REGIONE CALABRIA-DIPART.14-POLITICHE AMBIENTALI; ;TARIFFA SMALTIMENTO RSU- FEBBRAIO 2017 - CAP. 1103003;27-05-2017;1270;0;23;1;Spese correnti;3;Acquisto di beni e servizi;2;Acquisto di servizi;15;Contratti di servizio pubblico;5;Contratti di servizio per il conferimento in discarica dei rifiuti;2017-05-27;
343;1;"3.801,60";"3.801,60";REGIONE CALABRIA-DIPART.14-POLITICHE AMBIENTALI; ;TARIFFA SMALTIMENTO RSU- MARZO 2017 - CAP. 1103003;27-05-2017;1270;0;23;1;Spese correnti;3;Acquisto di beni e servizi;2;Acquisto di servizi;15;Contratti di servizio pubblico;5;Contratti di servizio per il conferimento in discarica dei rifiuti;2017-05-27;
344;1;"1.586,00";"1.586,00";SILPA S.R.L.;ZF01DD7DF5;SALDO Fatt.n. FATTPA 13_17  del 31/03/2017 ADEGUAMENTO ANTISISMICO EDIFICIO SCOLASTICO "SANTORO":COMPETENZE PER ESECUZIONE INDAGINI IN SITO E PROVE DI LABORATORIO;27-05-2017;127;0;76;1;Spese correnti;3;Acquisto di beni e servizi;2;Acquisto di servizi;11;Prestazioni professionali e specialistiche;999;Altre prestazioni professionali e specialistiche n.a.c.;2017-05-27;
345;1;"3.525,15";"3.525,15";D.B.M. INTERNATIONAL S.R.L.;ZB21DCECCE;SALDO Fatt.n. 59/PA  del 28/04/2017 ACQUISTO SACCHETTI PER RACCOLTA DIFFERENZIATA;27-05-2017;1250;2;44;1;Spese correnti;3;Acquisto di beni e servizi;1;Acquisto di beni;2;Altri beni di consumo;999;Altri beni e materiali di consumo n.a.c.;2017-05-27;
346;1;"10.000,00";"10.000,00";PACE ADRIANO;ZC617E15F2;SALDO Fatt.n. FATTPA 1_17  del 03/04/2017 PROGETTAZIONE URBANISTICA REDAZIONE NUOVO STRUMENTO DI PIANIFICAZIONE URBANISTICA DEL TERRITORIO (P.S.C.) E REGOLAMENTO EDILIZIO URBANISTICO (R.E.U.): ACCONTO;27-05-2017;1092;0;264;1;Spese correnti;3;Acquisto di beni e servizi;2;Acquisto di servizi;11;Prestazioni professionali e specialistiche;999;Altre prestazioni professionali e specialistiche n.a.c.;2017-05-27;
347;1;"100,30";"100,30";CERAMICHE MARAZZITA DI SALVATORE MARAZZITA & C.;Z141E4D8F8;SALDO Fatt.n. 9/PA  del 04/05/2017;27-05-2017;958;1;75;1;Spese correnti;3;Acquisto di beni e servizi;1;Acquisto di beni;2;Altri beni di consumo;999;Altri beni e materiali di consumo n.a.c.;2017-05-27;
348;1;"881,00";"881,00";TECNOAGRICOLA DI CRUGLIANO LEONARDO;Z221E4B48B;SALDO Fatt.n. 2  del 27/04/2017 ACQUISTO MATERIALE PER MANUTENZIONE AREE COMUNALI - LOCALITA' CATONA E VIA GRECIA;27-05-2017;958;1;71;1;Spese correnti;3;Acquisto di beni e servizi;1;Acquisto di beni;2;Altri beni di consumo;999;Altri beni e materiali di consumo n.a.c.;2017-05-27;
349;1;"173,00";"173,00";TECNOAGRICOLA DI CRUGLIANO LEONARDO;Z301E4B756;SALDO Fatt.n. 3  del 27/04/2017 ACQUISTO MATERIALE PER MANUTENZIONE VERDE ATTREZZATO LOCALITA' MONTE FUSCALDO;27-05-2017;1300;2;72;1;Spese correnti;3;Acquisto di beni e servizi;1;Acquisto di beni;2;Altri beni di consumo;999;Altri beni e materiali di consumo n.a.c.;2017-05-27;
350;1;"882,00";"882,00";TECNOAGRICOLA DI CRUGLIANO LEONARDO;Z2A1E4C372;SALDO Fatt.n. 4  del 27/04/2017 ACQUISTO MATERIALE PER MANUTENZIONE PERCORSI PEDONALI AREA ARCHEOLOGICA IN LOC. SANTO PONTE;27-05-2017;958;1;74;1;Spese correnti;3;Acquisto di beni e servizi;1;Acquisto di beni;2;Altri beni di consumo;999;Altri beni e materiali di consumo n.a.c.;2017-05-27;
351;1;"180,00";"180,00";TECNOAGRICOLA DI CRUGLIANO LEONARDO;Z531E4E702;SALDO Fatt.n. 5  del 27/04/2017 ACQUISTO MATERIALE PER MANUTENZIONE VERDE PUBBLICO ATTREZZATO IN LOC. SANTO PONTE;27-05-2017;1300;2;73;1;Spese correnti;3;Acquisto di beni e servizi;1;Acquisto di beni;2;Altri beni di consumo;999;Altri beni e materiali di consumo n.a.c.;2017-05-27;
352;1;"1.660,00";"1.660,00";RIZZA ANTONIO;ZFA1A6CBA3;SALDO Fatt.n. 2  del 11/05/2017 VALORIZZAZIONE CASTELLO 2016: INTERVENTI DI MANUTENZIONE STRAORDINARIA INFISSI CASTELLO;27-05-2017;2686;0;106;2;Spese in conto capitale;2;Investimenti fissi lordi e acquisto di terreni;1;Beni materiali;9;Beni immobili;18;"Musei, teatri e biblioteche";2017-05-27;
353;1;"9.506,06";"9.506,06";CORTESE MAURIZIO; ;SALDO Fatt.n. 1  del 12/05/2017 SPESE LEGALI  - SENTENZA N. 150/2016 DEL TRIBUNALE DI CROTONE;27-05-2017;125;0;96;1;Spese correnti;3;Acquisto di beni e servizi;2;Acquisto di servizi;11;Prestazioni professionali e specialistiche;6;Patrocinio legale;2017-05-27;
354;1;"1.106,40";"1.106,40";CREDITORI DIVERSI (Confr.Allegato); ;STIPENDI MESE DI MAGGIO;27-05-2017;14;1;0;1;Spese correnti;3;Acquisto di beni e servizi;2;Acquisto di servizi;1;Organi e incarichi istituzionali dell'amministrazione;1;Organi istituzionali dell'amministrazione - Indennità;2017-05-27;
355;1;"195,22";"195,22";CREDITORI DIVERSI (Confr.Allegato); ;STIPENDI MESE DI MAGGIO;27-05-2017;18;1;0;1;Spese correnti;3;Acquisto di beni e servizi;2;Acquisto di servizi;1;Organi e incarichi istituzionali dell'amministrazione;1;Organi istituzionali dell'amministrazione - Indennità;2017-05-27;
386;1;"529,48";"529,48";EDILCOM SRLS;ZFA1A6CBA3;SALDO Fatt.n. 2 / 6  del 05/04/2017 VALORIZZAZIONE CASTELLO 2016: ACQUISTO MATERIALE PER INTERVENTI DI MANUTENZIONE;29-05-2017;2686;0;106;2;Spese in conto capitale;2;Investimenti fissi lordi e acquisto di terreni;1;Beni materiali;9;Beni immobili;18;"Musei, teatri e biblioteche";2017-05-29;
387;1;"2.568,95";"2.568,95";REGIONE CALABRIA-DIPART.14-POLITICHE AMBIENTALI; ;TARIFFA SMALTIMENTO APRILE RSU- ANNO 2017 - CAP. 1103003;29-05-2017;1270;0;23;1;Spese correnti;3;Acquisto di beni e servizi;2;Acquisto di servizi;15;Contratti di servizio pubblico;5;Contratti di servizio per il conferimento in discarica dei rifiuti;2017-05-29;
388;1;"2.149,74";"2.149,74";TECNOAGRICOLA DI CRUGLIANO LEONARDO;ZFA1A6CBA3;ACCONTO Fatt.n. 6  del 09/05/2017 Ft Split Payment ex art.17-ter DPR 633/72;30-05-2017;2686;0;106;2;Spese in conto capitale;2;Investimenti fissi lordi e acquisto di terreni;1;Beni materiali;9;Beni immobili;18;"Musei, teatri e biblioteche";2017-05-30;
389;1;"2.116,90";"2.116,90";TECNOAGRICOLA DI CRUGLIANO LEONARDO;ZFA1A6CBA3;SALDO Fatt.n. 6  del 09/05/2017 Ft Split Payment ex art.17-ter DPR 633/72;30-05-2017;2686;0;98;2;Spese in conto capitale;2;Investimenti fissi lordi e acquisto di terreni;1;Beni materiali;9;Beni immobili;18;"Musei, teatri e biblioteche";2017-05-30;
